{"text_format":"1","workbook":"xlsx","n_sheets":2,"sheets":["Ppto Campo Verde","Aceros"],"not_rendered":{"charts":0,"images":2,"macros":0,"external_links":1,"defined_names":27,"comments":0,"pivot_tables":0},"unopened":[],"bounds":{"document_bytes":16777216,"sheet_cells":100000,"rows_first":2000,"rows_last":500,"rows_between":2000,"halvings":0,"cell_chars":16384,"cell_head_chars":4096},"cells_cut":0,"cells_raw":0,"read":"whole","date_system":"1900"}

{"sheet":"Ppto Campo Verde","index":0,"n_rows":595,"n_cols":7,"rows_kept":595,"cut":false,"hidden":false,"merged":[[1,1,4,1],[1,2,4,5],[586,2,586,3],[39,2,39,5],[17,2,17,5],[20,2,20,5],[23,2,23,5],[22,2,22,6],[298,2,298,5],[301,2,301,5],[233,2,233,5],[240,2,240,5],[243,2,243,5],[546,2,546,5],[527,2,527,6],[528,2,528,5],[522,2,522,5],[586,5,586,6],[588,5,588,6],[590,5,590,6],[591,5,591,6],[545,2,545,6],[592,5,592,6],[593,5,593,6],[594,5,594,6],[594,2,594,3],[9,2,9,6],[10,2,10,5],[13,2,13,6],[14,2,14,5],[583,2,583,5],[578,2,578,5],[574,2,574,6],[575,2,575,5],[572,2,572,5],[568,2,568,5],[560,2,560,5],[554,2,554,5],[518,2,518,5],[489,2,489,5],[475,2,475,5],[472,2,472,5],[474,2,474,6],[471,2,471,6],[452,2,452,5],[455,2,455,5],[457,2,457,5],[459,2,459,5],[444,2,444,5],[436,2,436,5],[391,2,391,5],[397,2,397,5],[409,2,409,5],[408,2,408,6],[361,2,361,5],[366,2,366,5],[373,2,373,5],[378,2,378,5],[382,2,382,5],[131,2,131,5],[106,2,106,5],[349,2,349,5],[354,2,354,5],[323,2,323,5],[327,2,327,5],[331,2,331,5],[6,1,6,6],[400,2,400,5],[70,2,70,5],[74,2,74,5],[73,2,73,6],[69,2,69,6],[43,2,43,5],[105,2,105,6],[97,2,97,5],[100,2,100,5],[90,2,90,5],[94,2,94,5],[93,2,93,6],[224,2,224,5],[195,2,195,5],[164,2,164,5]]}
[]
[null,null,"CONSTRUCCIÓN Y PUESTA EN FUNCIONAMIENTO DEL JARDIN INFANTIL CAMPO VERDE EN LA LOCALIDAD DE BOSA, BOGOTÁ D.C."]
[]
[]
[]
[]
[null,"PRESUPUESTO ESTIMADO OBRA CIVIL - ANEXO No. 1"]
[]
[null,"ITEM","ACTIVIDAD","UND","CANTIDADES","VALOR UNITARIO","TOTAL"]
[null,1,"PRELIMINARES"]
[null,"1.1","REPLANTEO GENERAL",null,null,null,{"$f":"SUM(G12:G13)","v":0}]
[null,"1.1.1","Localizaciòn, trazado y replanteo con elementos de precisión.","m²",2338.89,null,{"$f":"+ROUND(E12*F12,0)","v":0}]
[null,"1.1.2","Descapote Manual y retiro H= 0.65 m, de acuerdo con la geología local descrita en el informe de Suelos (incluye retiro a una distancia hasta 20KM y dispocisión de sobrantes en sitio autorizado)","m²",2625,null,{"$f":"+ROUND(E13*F13,0)","v":0}]
[null,2,"EXCAVACIONES Y RELLENOS"]
[null,"2.1","EXCAVACIONES (incluye retiro, cargue y transporte a una distancia hasta 20 km disposición en sitio autorizado)",null,null,null,{"$f":"SUM(G16:G17)","v":0}]
[null,"2.1.1","Excavación mecánica (Incluye cargue y retiro de escombros)","m³",451.60217499999999,null,{"$f":"+ROUND(E16*F16,0)","v":0}]
[null,"2.1.2","Excavación mecánica Tanque (Incluye entibación, cargue y retiro de escombros)","m³",102.22200000000001,null,{"$f":"+ROUND(E17*F17,0)","v":0}]
[null,"2.2","RELLENOS",null,null,null,{"$f":"SUM(G19:G20)","v":0}]
[null,"2.2.1","Relleno en Recebo B-200 (Suministro, extendido, humedecimiento y compactación)","m³",349.22890000000007,null,{"$f":"+ROUND(E19*F19,0)","v":0}]
[null,"2.2.2","Compactación mecanica de suelo natural","m²",939.37599999999998,null,{"$f":"+ROUND(E20*F20,0)","v":0}]
[null,"2.3","DRENAJE SUB-SUPERFICIAL",null,null,null,{"$f":"SUM(G22)","v":0}]
[null,"2.3.1","Construcción de drenaje en tubería perforada 4\" (Incluye excavación manual, suministro e instalación de geotextil, arena fina y gravilla)","m",271.69229999999999,null,{"$f":"+ROUND(E22*F22,0)","v":0}]
[null,3,"ESTRUCTURA EN CONCRETO"]
[null,"3.1","CIMENTACIÓN (Incluye bombeo, desmoldantes  y cualquier aditivo que se requieran para obtener un concreto de alto desempeño. El costo de cualquier aditivo que sea empleado en la elaboración de estos concetos deberá ser asumido por el contratista dentro de cada una de las actividades.) (ACERO: INCLUYE SUMINISTRO, ALAMBRE NEGRO, FIGURACIÓN, AMARRE, INSTALACIÓN Y TODO LO REQUERIDO PARA LA CORRECTA EJECUCIÓN Y FUNCIONAMIENTO)",null,null,null,{"$f":"SUM(G25:G39)","v":0}]
[null,"3.1.1","Concreto de limpieza de 2000 PSI, e: 0,05 m","m²",320.90499999999992,null,{"$f":"+ROUND(E25*F25,0)","v":0}]
[null,"3.1.2","Dado en concreto 3000 psi (incluye formaleta, vibrado y desmoldeante. no incluye acero)","m³",349.39650000000006,null,{"$f":"+ROUND(E26*F26,0)","v":0}]
[null,"3.1.3","Acero de refuerzo 60000 PSI \nDados","kg",18200.975849999999,null,0]
[null,"3.1.4","Vigas de amarre en concreto 3000 psi (incluye formaleta, vibrado, curado y desmoldeante. no incluye acero","m³",132.56070000000003,null,0]
[null,"3.1.5","Acero de refuerzo 60000 PSI \nVigas de amarre","kg",20203.275719999994,null,0]
[null,"3.1.6","Placa de contrapiso en concreto 3000 PSI, e: 12 cm (Incluye formaleta, vibrado y desmolde, no incluye acero)","m²",1254.8200000000002,null,0]
[null,"3.1.7","Malla electro soldada 0.15 x 0.15 m, d= 6\"\nPlaca de contrapiso","kg",4311.325531914893,null,0]
[null,"3.1.8","Pilotes en concreto 3000 PSI, Ø= 0.6 m (Incluye prehuecos, excavación, retiro de material, transporte, armado y desmonte de equipos, no incluye acero)","m",612.5,null,0]
[null,"3.1.9","Pilotes en concreto 3000 PSI, Ø= 0.8 m (Incluye prehuecos, excavación, retiro de material, transporte, armado y desmonte de equipos, no incluye acero)","m",1312.5,null,0]
[null,"3.1.10","Descabece de pilotes en concreto 3000 PSI h=0.5 m.Incluye retiro, trasciego y transpoorte a su disposición final.","m³",33.31659009131976,null,0]
[null,"3.1.11","Acero de refuerzo 60000 PSI \nPilotes","kg",52353.324800000002,null,0]
[null,"3.1.12","Zapata en concreto de 3000 PSI (Incluye formaleta, vibrado y desmolde, no incluye acero)","m³",3.4770000000000003,null,0]
[null,"3.1.13","Acero de refuerzo 60000 PSI \nZapatas","kg",140.55160000000001,null,0]
[null,"3.1.14","Pedestales zapatas en concreto de 3000 PSI (Incluye formaleta, vibrado y desmolde, no incluye acero)","m³",2.6377999999999999,null,0]
[null,"3.1.15","Acero de refuerzo 60000 PSI \nPedestales ","kg",569.84703999999999,null,0]
[null,"3.2","TANQUES (Incluye formaleta, elementos de fijación y soporte, herramientas, equipos, transporte interno y externo, mano de obra, pruebas y ensayos para su correcta ejecución y recibo a satisfacción. Conforme a los planos y especificaciones técnicas) (ACERO: INCLUYE SUMINISTRO, ALAMBRE NEGRO, FIGURACIÓN, AMARRE, INSTALACIÓN Y TODO LO REQUERIDO PARA LA CORRECTA EJECUCIÓN Y FUNCIONAMIENTO) El concreto debe ser impermeabilizado.  Todos los elementos  deben ser del mismo tono y color y deben ser aprobados por el arquitecto diseñador/Contratante e interventoría.   Incluye costo: bombeo,  desmoldantes. El costo de cualquier aditivo que sea empleado en la elaboración de estos concretos deberá ser asumido por el contratista dentro de cada una de las actividades.    Incluye costo Formaleta  para entramado de entrepisos, compuesta por camillas, cerchas, parales, testeros, etc. con las dimensiones y acabado, según detalles especificos.  Incluye  costo del equipo pesado y liviano necesario para la colocacion y manejo del concreto.",null,null,null,{"$f":"SUM(G41:G43)","v":0}]
[null,"3.2.1","Concreto de limpieza de 2000 PSI, e: 0,05 m","m²",82.600000000000009,null,0]
[null,"3.2.2","Concreto impermeabilizado 4000 PSI con adición de sello PVC ","m³",125.55000000000001,null,0]
[null,"3.2.3","Acero de refuerzo 60000 PSI ","kg",7971.8957999999984,null,0]
[null,"3.3","ESTRUCTURAS (Incluye formaleta, elementos de fijación y soporte, herramientas, equipos, transporte interno y externo, mano de obra, pruebas y ensayos para su correcta ejecución y recibo a satisfacción. Conforme a los planos y especificaciones técnicas) (ACERO: INCLUYE SUMINISTRO, ALAMBRE NEGRO, FIGURACIÓN, AMARRE, INSTALACIÓN Y TODO LO REQUERIDO PARA LA CORRECTA EJECUCIÓN Y FUNCIONAMIENTO)",null,null,null,{"$f":"SUM(G45:G69)","v":0}]
[null,"3.3.1","Columna en concreto 4000 PSI premezclado, acabado a la vista con filos redondeados","m³",91.747714088556492,null,0]
[null,"3.3.2","Acero de refuerzo 60000 PSI \nColumnas","kg",30213.343180000003,null,0]
[null,"3.3.3","Placa aligerada de entrepiso en concreto 4000 PSI P2, de 60cm de altura. Contempla los tipos de placa con viga descolgada, placa con doble torta y placa invertida. Incluye aligeramiento y formaleta.","m²",1125.98,null,0]
[null,"3.3.4","Placa aligerada entrepiso en concreto 4000 PSI P3, de 60cm de altura. Contempla los tipos de placa con viga descolgada, placa con doble torta y placa invertida. Incluye aligeramiento y formaleta.","m²",604.45000000000005,null,0]
[null,"3.3.5","Placa cubierta 1 y 2 en concreto 4000 PSI, e: 12 cm ","m²",1509.67,null,0]
[null,"3.3.6","Malla electro soldada 0.15 x 0.15 m, d= 7 \nPlaca entrepiso P2","kg",9826.5460992907792,null,0]
[null,"3.3.7","Malla electro soldada 0.15 x 0.15 m, d= 7\n Placa entrepiso P3","kg",4965.6347517730483,null,0]
[null,"3.3.8","Malla electro soldada 0.15 x 0.15 m, d= 7 \nPlaca Cubierta 1 y 2","kg",8095.9999999999982,null,0]
[null,"3.3.9","Acero de refuerzo 60000 PSI  Vigas P2","kg",14939.02919999999,null,0]
[null,"3.3.10","Acero de refuerzo 60000 PSI  Vigas P3","kg",9373.1215999999931,null,0]
[null,"3.3.11","Acero de refuerzo 60000 PSI  Vigas Cubierta 1 y 2","kg",10927.589199999989,null,0]
[null,"3.3.12","Acero de refuerzo 60000 PSI \nViguetas y Riostras P2","kg",4867.1737999999987,null,0]
[null,"3.3.13","Acero de refuerzo 60000 PSI \nViguetas y Riostras P3","kg",2445.5426600000001,null,0]
[null,"3.3.14","Acero de refuerzo 60000 PSI \nViguetas y Riostras Cubierta 1 y 2","kg",4029.7840000000028,null,0]
[null,"3.3.15","Escalera maciza en concreto 4000 PSI (incluye formaleta, vibrado, curado y desmoldeante. No incluye acero)","m³",18.048960000000001,null,0]
[null,"3.3.16","Acero de refuerzo 60000 PSI \nEscaleras","kg",2478.5264000000011,null,0]
[null,"3.3.17","Sobreanchos en Concreto 4000 PSI (Incluye formaleta, vibrado y desmolde, no incluye acero)","m³",32.958159999999999,null,0]
[null,"3.3.18","Acero de refuerzo 60000 PSI \nSobreancho","kg",2203.085770666667,null,0]
[null,"3.3.19","Fosa de ascesor en Concreto 4000 PSI  (Incluye formaleta, vibrado y desmolde, no incluye acero)","m³",5.411249999999999,null,0]
[null,"3.3.20","Acero de refuerzo 60000 PSI Fosa de Ascenor","kg",586.06240000000003,null,0]
[null,"3.3.21","Dovela en concreto fluido de 12.5Mpa, reforzada con varilla corrugada 1/2\", para muros reforzados de ladrillo gran formato","m",1369.1200000000006,null,0]
[null,"3.3.22","Columneta de 12cm x 12cm en concreto de 21Mpa, reforzada con varilla corrugada 1/2\", para muros divisorios en bloque","m",1595.1199999999992,null,0]
[null,"3.3.23","Alistado de pisos en mortero 1:3 e=0.04m","m²",2405.3999999999996,null,0]
[null,"3.3.24","Columnetas, dinteles y sillares en concreto de 21MPa, Incluye refuerzo con varilla de 420MPa para soporte de dobles muros en ladrillo gran formato","m³",18.240000000000002,null,0]
[null,"3.3.25","Cinta en concreto de 12.5Mpa, reforzada con varilla corrugada 3/8\", para remates de parapetos en ladrillo gran formato, según detalle","m",241.9,null,0]
[null,4,"ESTRUCTURA METÁLICA (Incluye formaleta, elementos de fijación y soporte, herramientas, equipos, transporte interno y externo, mano de obra, pruebas y ensayos para su correcta ejecución y recibo a satisfacción. Conforme a los planos y especificaciones técnicas)"]
[null,"4.1","COLUMNAS Y VIGAS ENTRE PISOS 1 Y 2 ",null,null,null,{"$f":"SUM(G72:G73)","v":0}]
[null,"4.1.1","Suministro e instalación de estructura en acero para columnas ASTM A500, grado: C, 322 MPa  (Incluye perfiles tubulares, platinas y soldadura E70XX, limpieza de superficie tipo SSPC-SP3, pintura anticorrosiva + acabado epóxica, pernos de conexión ASTM A354).","kg",2042.1179200000001,null,{"$f":"+ROUND(E72*F72,0)","v":0}]
[null,"4.1.2","Suministro e instalación de estructura en acero para vigas ASTM A500, grado: C, 322 MPa  (Incluye perfiles tubulares, platinas y soldadura E70XX, limpieza de superficie tipo SSPC-SP3, pintura anticorrosiva + acabado epóxica, pernos de conexión ASTM A354.","kg",909.74620000000004,null,0]
[null,5,"MUROS Y REVOQUES Incluye formaleta, elementos de fijación y soporte, herramientas, equipos, transporte interno y externo, mano de obra, pruebas y ensayos, lavavo e hidrofugado, para su correcta ejecución y recibo a satisfacción. Conforme a los planos y especificaciones técnicas)"]
[null,"5.1","MUROS (Incluye suministro, desperiicos, trasciego, grafill según especificación, emboquillado de color, materiales y equipos, para su correcta ejecución y recibo a satisfacción. Conforme a los planos y especificaciones técnicas)",null,null,null,{"$f":"SUM(G76:G90)","v":0}]
[null,"5.1.1","Muro en ladrillo gran formato color tierra (39cm x 11,5cm x 5cm), aparejo normal (tipo soga), con junta a tope y acabado externo en mortero de color tierra.","m²",1906.9240000000009,null,{"$f":"+ROUND(E76*F76,0)","v":0}]
[null,"5.1.2","Muro en ladrillo gran formato color tierra (39cm x 11,5cm x 5cm), aparejo par en espina e impar en soga, con junta a tope y acabado externo en mortero de color tierra","m²",20.3,null,0]
[null,"5.1.3","Muro en ladrillo gran formato color tierra (39cm x 11,5cm x 5cm), aparejo calado, con junta a tope y acabado externo en mortero de color tierra","m²",32.39,null,0]
[null,"5.1.4","Muro en ladrillo estriado 10cm x 20cm x 40cm, aparejo tipo soga","m²",1112.623,null,0]
[null,"5.1.5","Muro en canal de vidrio traslúcido en forma de U de 0,25m de ancho e=6mm","m²",363.08599999999996,null,0]
[null,"5.1.6","Muro vaciado en concreto de 3000psi e=30cm, acabado a la vista, incluye refuerzo, según detalle de elementos no estructurales","m²",131.566,null,0]
[null,"5.1.7","Muro vaciado en concreto de 3000psi e=15cm, acabado a la vista, incluye refuerzo, según detalle de elementos no estructurales","m²",141.602,null,0]
[null,"5.1.8","Muro en policarbonato","m²",130.72500000000002,null,0]
[null,"5.1.9","Muro liviano en drywall en 2 caras, estructura paral base 9 y lámina e=3/8\"","m²",87,null,0]
[null,"5.1.10","Muro liviano en drywall en 1 cara, estructura paral base 9 y lámina e=3/8\"","m²",371.44,null,0]
[null,"5.1.11","Muro en madera mediante bastidores, incluye capa de protección","m²",48.72,null,0]
[null,"5.1.12","Arranque epóxico en varilla corrugada fy' 420Mpa Ø1/2\" @0.3m L=1m para muros en concreto","und",477,null,0]
[null,"5.1.13","Anclaje superior epóxico en varilla corrugada Ø1/2\" @1m L=0.75m para muros en concreto","und",88,null,0]
[null,"5.1.14","Arranque y anclaje superior epóxico en varilla corrugada fy' 420Mpa Ø1/2\" L=0.8m para columnetas de confinamiento en muros en ladrillo estriado, y para dovelas de refuerzo de muros en ladrillo gran formato","und",1464,null,0]
[null,"5.1.15","Lavado con hidrófugo en muros en ladrillo a la vista","m²",1959.6140000000009,null,0]
[null,"5.2","REVOQUES  (Incluye pañete, filos y dilataciones, herramientas, equipos, transporte interno para su correcta ejecución y recibo a satisfacción. Conforme a los planos y especificaciones técnicas)",null,null,null,{"$f":"SUM(G92:G93)","v":0}]
[null,"5.2.1","Pañete muro 1:4, incluye filos y dilataciones","m²",3810.55,null,0]
[null,"5.2.2","Estuco plástico, dos manos, incluye filos y dilataciones","m²",3421.62,null,0]
[null,6,"IMPERMEABILIZACIÓN  (Incluye, suministro, herramientas, equipos, transporte interno y externo, pruebas, mano de obra para su correcta ejecución y recibo a satisfacción. Conforme a los planos y especificaciones técnicas)"]
[null,"6.1","ASFÁLTICA",null,null,null,{"$f":"SUM(G96:G97)","v":0}]
[null,"6.1.1","Sistema de impermeabilización asfáltica monocapa, compuesta por una imprimación con emulsión asfáltica sobre placa de concreto, más lámina impermeabilizante bituminosa con espesor de 3mm sin autoprotección y capa de pintura bituminosa reflectiva de aluminio (1 mano)","m²",265.82000000000005,null,{"$f":"+ROUND(E96*F96,0)","v":0}]
[null,"6.1.2","Sistema de impermeabilización asfáltica monocapa para mediacaña y parapeto, desarrollo 40cm, compuesta por una imprimación con emulsión asfáltica sobre placa de concreto, más lámina impermeabilizante bituminosa con espesor de 3mm sin autoprotección y capa de pintura bituminosa reflectiva de aluminio (1 mano)","m",233.68,null,0]
[null,"6.2","MORTERO (Incluye, herramientas, formaleta, equipos, transporte interno y externo, pruebas, mano de obra para su correcta ejecución y recibo a satisfacción. Conforme a los planos y especificaciones técnicas)",null,null,null,{"$f":"SUM(G99:G100)","v":0}]
[null,"6.2.1","Mortero de nivelación impermeabilizado 1:3, espesor promedio 5cm, incluye látex para mejora de adherencia con piso existente","m²",265.82000000000005,null,0]
[null,"6.2.2","Media caña en mortero impermeabilizado 1:3, con desarrollo r=7.5cm","m",233.68,null,0]
[null,"6.3","CUBIERTAS (Incluye, suministro, herramientas, formaleta, equipos, transporte interno y externo, pruebas, mano de obra para su correcta ejecución y recibo a satisfacción. Conforme a los planos y especificaciones técnicas)",null,null,null,{"$f":"SUM(G102:G105)","v":0}]
[null,"6.3.1","Sistema de impermeabilización asfáltica bicapa, compuesta por una imprimación con emulsión asfáltica sobre placa de concreto, más dos láminas impermeabilizantes bituminosas con espesor de 3mm sin autoprotección y capa de pintura bituminosa reflectiva de aluminio (1 mano)","m²",572.08000000000004,null,0]
[null,"6.3.2","Enchape de ladrillo gran formato color tierra (39cm x 11,5cm x 5cm), sobre cubierta inclinada, incluye impermeabilizante para muros y malla electrosoldada 6mm @150mm","m²",572.08000000000004,null,0]
[null,"6.3.3","Sistema de cubierta verde inclinada. Incluye geotextil no tejido NT 2500, impermeabilizante tipo membrana, lámina multipropósito y sustrato en tierra abonada para siembra","m²",71.319999999999993,null,0]
[null,"6.3.4","Sistema de cubierta verde plana. Incluye geotextil no tejido NT 2500, impermeabilizante tipo membrana, lámina multipropósito y sustrato en tierra abonada para siembra","m²",83.19,null,0]
[null,7,"INSTALACIONES HIDROSANITARIAS Y RED CONTRA INCENDIOS   (Incluye suministrol, instalación, herramientas, equipos, transporte interno y externo, mano de obra, pruebas y ensayos para su correcta ejecución y recibo a satisfacción. Conforme a los planos y especificaciones técnicas. Se incluye acometida tanque incendio)."]
[null,"7.1","ACOMETIDA",null,null,null,{"$f":"SUM(G108:G131)","v":0}]
[null,"7.1.1","CONEXIÓN A LA RED PÚBLICA 3/4\"","Global",1,null,{"$f":"+ROUND(E108*F108,0)","v":0}]
[null,"7.1.2","TUBERIA PVCP RDE 11 DE ¾'' INCLUYE ACCESORIOS","m",34,null,0]
[null,"7.1.3","TUBERÍA H.G. 3/4\"","m",10,null,0]
[null,"7.1.4","ACCESORIOS PVC-P 3/4\"","Und",4,null,0]
[null,"7.1.5","ACCESORIOS H.G. 3/4\"","Und",16,null,0]
[null,"7.1.6","FLOTADOR MECANICO BOLA GRANDE 3/4\"","m",2,null,0]
[null,"7.1.7","VÁLVULA ANTIFRAUDE 3/4\"","m",1,null,0]
[null,"7.1.8","ABRAZADERA 3/4\"","Und",6,null,0]
[null,"7.1.9","NIPLE PASAMURO ACERO INOXIDABLE 3/4\"","Und",2,null,0]
[null,"7.1.10","MEDIDOR TOTALIZADOR 3/4\"","Und",1,null,0]
[null,"7.1.11","REGISTRO CORTE BOLA 3/4\"","Und",5,null,0]
[null,"7.1.12","CAJA MEDIDOR TOTALIZADOR","Und",1,null,0]
[null,"7.1.13","TUBERIA PVC-S 2\"","m",6,null,0]
[null,"7.1.14","ACCESORIOS PVC-S 2\"","Und",2,null,0]
[null,"7.1.15","SIFON PVC-S 2\"","Und",1,null,0]
[null,"7.1.16","CHEQUE HIDRO 3/4\"","Und",1,null,0]
[null,"7.1.17","REGISTRO BOLA P.D. 3/4\"","Und",1,null,0]
[null,"7.1.18","UNIVERSAL H.G. 3/4\"","Und",1,null,0]
[null,"7.1.19","UNIÓN DRESSER 3/4\"","Und",1,null,0]
[null,"7.1.20","EXCAVACIÓN MANUAL","m³",4.3,null,0]
[null,"7.1.21","RELLENO CAMA DE ARENA","m³",0.5,null,0]
[null,"7.1.22","RELLENO EN MATERIAL SELECCIONADO","m³",3.8,null,0]
[null,"7.1.23","RETIRO DE SOBRANTES","m³",5.4,null,0]
[null,"7.1.24","ROTURA Y REPOSICIÓN DE ANDEN","m²",18,null,0]
[null,"7.2","CUARTO DE BOMBAS AGUA POTABLE Incluye: Suministro, instalación, Pruebas, mano de obra, herramienta y materiales para la red del cuarto de bombas de agua potable. Se incluye recirculación, lavado y rebose.",null,null,null,{"$f":"SUM(G133:G164)","v":0}]
[null,"7.2.1","TUBERIA AGUA GALVANIZADA INCLUYE ACCESORIOS 4\"","m",3,null,0]
[null,"7.2.2","TUBERIA AGUA GALVANIZADA INCLUYE ACCESORIOS 3\"","m",6,null,0]
[null,"7.2.3","TUBERIA AGUA GALVANIZADA INCLUYE ACCESORIOS 2\"","m",13,null,0]
[null,"7.2.4","TUBERIA  AGUA GALVANIZADA INCLUYE ACCESORIOS 1-1/4\"","m",4,null,0]
[null,"7.2.5","TUBERIA  AGUA GALVANIZADA INCLUYE ACCESORIOS 1\"","m",4,null,0]
[null,"7.2.6","ACCESORIOS ACERO RANURADOS 4\"","Und",2,null,0]
[null,"7.2.7","ACCESORIOS ACERO RANURADOS 3\"","Und",2,null,0]
[null,"7.2.8","ACCESORIOS ACERO RANURADOS 2\"","Und",12,null,0]
[null,"7.2.9","ACCESORIOS ACERO ROSCAR 1 1/4\"","Und",6,null,0]
[null,"7.2.10","ACCESORIOS ACERO ROSCAR 1\"","Und",4,null,0]
[null,"7.2.11","REGISTRO R.W. P.D. 3\"","Und",2,null,0]
[null,"7.2.12","REGISTRO R.W. P.D. 2\"","Und",4,null,0]
[null,"7.2.13","REGISTRO R.W. P.D. 1 1/4\"","Und",1,null,0]
[null,"7.2.14","REGISTRO R.W. P.D. 1\"","Und",2,null,0]
[null,"7.2.15","CHEQUE HIDRO 2\"","Und",3,null,0]
[null,"7.2.16","REGISTRO CORTINA 1-1/4\"","Und",1,null,0]
[null,"7.2.17","UNIVERSAL H.G. 1 1/4","Und",1,null,0]
[null,"7.2.18","UNIÓN FLEXIBLE METALICA 3\"","Und",2,null,0]
[null,"7.2.19","UNIÓN FLEXIBLE METALICA 2\"","Und",3,null,0]
[null,"7.2.20","COPA EXCENTRICA 3\" x 2\"","Und",2,null,0]
[null,"7.2.21","COPA CONCENTRICA 2\" x 1\"","Und",2,null,0]
[null,"7.2.22","BRIDA ACERO (INDIVIDUAL) 3\"","Und",4,null,0]
[null,"7.2.23","BRIDA ACERO (INDIVIDUAL) 2\"","Und",4,null,0]
[null,"7.2.24","NIPLE PASAMURO ACERO INOXIDABLE 4\"","Und",1,null,0]
[null,"7.2.25","NIPLE PASAMURO ACERO INOXIDABLE 3\"","Und",2,null,0]
[null,"7.2.26","NIPLE PASAMURO ACERO INOXIDABLE 2\"","Und",1,null,0]
[null,"7.2.27","NIPLE PASAMURO ACERO INOXIDABLE 1\"","Und",1,null,0]
[null,"7.2.28","STICKERS IDENTIFICACION REG.","Und",13,null,0]
[null,"7.2.29","SOPORTE PARA TUBERIA DE SUCCION","Und",2,null,0]
[null,"7.2.30","ABRAZADERAS 2\"","Und",6,null,0]
[null,"7.2.31","ABRAZADERAS 1 1/4\"","Und",3,null,0]
[null,"7.2.32","ABRAZADERAS 1\"","Und",2,null,0]
[null,"7.3","CUARTO DE BOMBAS AGUA INCENDIO (Incluye: Suministro, Pruebas, instalación, mano de obra, herramienta y materiales para la red del cuarto de bombas de agua incendio. Se incluye cabezal de pruebas.",null,null,null,{"$f":"SUM(G166:G195)","v":0}]
[null,"7.3.1","TUBERIA ACERO GALV. SCH 40 RANURADA 6\"","m",6,null,0]
[null,"7.3.2","TUBERIA AGUA GALVANIZADA INCLUYE ACCESORIOS 3\"","m",5,null,0]
[null,"7.3.3","TUBERIA AGUA GALVANIZADA INCLUYE ACCESORIOS 2\"","m",4,null,0]
[null,"7.3.4","ACCESORIOS HD RANURADOS 6\"","Und",6,null,0]
[null,"7.3.5","ACCESORIOS HD RANURADOS 3\"","Und",3,null,0]
[null,"7.3.6","ACCESORIOS HD RANURADOS 2\"","Und",2,null,0]
[null,"7.3.7","ACOPLE RIGIDO HD 6\"","Und ",15,null,{"$f":"+ROUND(E172*F172,0)","v":0}]
[null,"7.3.8","ACOPLE RIGIDO HD 3\"","Und ",8,null,0]
[null,"7.3.9","ACOPLE RIGIDO HD 2\"","Und ",5,null,0]
[null,"7.3.10","REGISTRO VASTAGO ASCENDENTE 8\"","Und",1,null,0]
[null,"7.3.11","REGISTRO VASTAGO ASCENDENTE 3\"","Und",2,null,0]
[null,"7.3.12","CHEQUE HIDRO 6\"","Und",2,null,0]
[null,"7.3.13","CHEQUE HIDRO 3\"","Und",2,null,0]
[null,"7.3.14","UNIÓN FLEXIBLE METALICA 6\"","Und",1,null,0]
[null,"7.3.15","UNIÓN FLEXIBLE METALICA 3\"","Und",1,null,0]
[null,"7.3.16","LAMINA ANTIVORTICE 6\"","Und",1,null,0]
[null,"7.3.17","VALVULA MARIPOSA 6\"","Und",2,null,0]
[null,"7.3.18","VALVULA MARIPOSA 3\"","Und",2,null,0]
[null,"7.3.19","BRIDA ACERO (INDIVIDUAL) 6\"","Und",10,null,0]
[null,"7.3.20","BRIDA ACERO (INDIVIDUAL) 3\"","Und",6,null,0]
[null,"7.3.21","CABEZAL DE PRUEBAS 2 X 2.1/2\"","Und",1,null,0]
[null,"7.3.22","VALVULA DE ALIVIO 2\"","Und",1,null,0]
[null,"7.3.23","NIPLE PASAMURO ACERO INOXIDABLE 8\"","Und",1,null,0]
[null,"7.3.24","NIPLE PASAMURO ACERO INOXIDABLE 4\"","Und",1,null,0]
[null,"7.3.25","NIPLE PASAMURO ACERO INOXIDABLE 3\"","Und",1,null,0]
[null,"7.3.26","NIPLE PASAMURO ACERO INOXIDABLE 2\"","Und",2,null,0]
[null,"7.3.27","STICKERS IDENTIFICACION REG.","Und",11,null,0]
[null,"7.3.28","SOPORTE PARA TUBERIA DE SUCCION","Und",2,null,0]
[null,"7.3.29","ABRAZADERAS 6\"","Und",2,null,0]
[null,"7.3.30","ABRAZADERAS 3\"","Und",2,null,0]
[null,"7.4","RED GENERAL AGUA POTABLE (Incluye: Suministro, Pruebas, instalación, la mano de obra, herramienta y materiales para la red de agua fría desde la salida del cuarto de bombas hasta la llegada a cada punto hidraulico).",null,null,null,{"$f":"SUM(G197:G224)","v":0}]
[null,"7.4.1","TUBERIA  PVCP RDE 21 DE 2'' INCLUYE ACCESORIOS","m",6,null,0]
[null,"7.4.2","TUBERIA  PVCP RDE 21 DE 11/2 '' INCLUYE ACCESORIOS","m",38,null,0]
[null,"7.4.3","TUBERIA  PVCP RDE 21 DE 11/4'' INCLUYE ACCESORIOS","m",60,null,0]
[null,"7.4.4","TUBERIA  PVCP RDE 21 DE 1'' INCLUYE ACCESORIOS","m",22,null,0]
[null,"7.4.5","TUBERIA PVCP RDE 11 DE ¾'' INCLUYE ACCESORIOS","m",125,null,0]
[null,"7.4.6","TUBERIA  PVCP RDE 9 DE ½'' INCLUYE ACCESORIOS","m",118,null,0]
[null,"7.4.7","ACCESORIOS PVC-P 2\"","Und",16,null,0]
[null,"7.4.8","ACCESORIOS PVC-P 1 1/2\"","Und",12,null,0]
[null,"7.4.9","ACCESORIOS PVC-P 1 1/4\"","Und",18,null,0]
[null,"7.4.10","ACCESORIOS PVC-P 1\"","Und",65,null,0]
[null,"7.4.11","ACCESORIOS PVC-P 3/4\"","Und",68,null,0]
[null,"7.4.12","ACCESORIOS PVC-P 1/2\"","Und",154,null,0]
[null,"7.4.13","REGISTRO BOLA 1 1/4\"","Und",1,null,0]
[null,"7.4.14","REGISTRO BOLA 1\"","Und",6,null,0]
[null,"7.4.15","REGISTRO BOLA 3/4\"","Und",5,null,0]
[null,"7.4.16","REGISTRO BOLA 1/2\"","Und",27,null,0]
[null,"7.4.17","ABRAZADERAS 2\"","Und",8,null,0]
[null,"7.4.18","ABRAZADERAS 1 1/2\"","Und",20,null,0]
[null,"7.4.19","ABRAZADERAS 1 1/4\"","Und",17,null,0]
[null,"7.4.20","ABRAZADERAS 1\"","Und",49,null,0]
[null,"7.4.21","ABRAZADERAS 3/4\"","Und",56,null,0]
[null,"7.4.22","ABRAZADERAS 1/2\"","Und",92,null,0]
[null,"7.4.23","LLAVE DE MANGUERA 1/2\"","Und",22,null,0]
[null,"7.4.24","CALENTADOR ELÉCTRICO 10L/MIN","Und",4,null,0]
[null,"7.4.25","EXCAVACIÓN MANUAL","m³",2.7,null,0]
[null,"7.4.26","RELLENO CAMA DE ARENA","m³",0.4,null,0]
[null,"7.4.27","RELLENO EN MATERIAL SELECCIONADO","m³",2.3000000000000003,null,0]
[null,"7.4.28","RETIRO DE SOBRANTES","m³",3.4,null,0]
[null,"7.5","PUNTOS HIDRÁULICOS AGUA FRIA (Incluye: Suministro, instalación, prueba de la tuberia y accesorios requeridos para realizar la conexión de agua a los aparatos sanitarios o puntos de abastecimiento. Comprende el tramo vertical a partir del codo mediante el cual se realiza el cambio de dirección de horizontal en la red , a vertical en el paral de abastecimiento. Incluye el accesorio de cambio de dirección. Incluye el paral, la recamara, el tapones para prueba  de la instalación de suministro y los adaptadores que sean requeridos para el montaje del aparato, además de la soldadura , sellante y herramienta).",null,null,null,{"$f":"SUM(G226:G233)","v":0}]
[null,"7.5.1","SANITARIO 1 1/4\"","Und",5,null,0]
[null,"7.5.2","SANITARIO 1/2\"","Und",20,null,0]
[null,"7.5.3","LAVAMANOS 1/2\"","Und",31,null,0]
[null,"7.5.4","DUCHAS 1/2\"","Und",12,null,0]
[null,"7.5.5","ORINAL 1/2\"","Und",4,null,0]
[null,"7.5.6","LLAVE DE MANGUERA 1/2\"","Und",1,null,0]
[null,"7.5.7","LAVAPLATOS 1/2\"","Und",10,null,0]
[null,"7.5.8","CALENTADOR 1/2\"","Und",3,null,0]
[null,"7.6","RED DE SUMINISTRO DE AGUA CALIENTE (Incluye: Mano de obra, transporte, herramienta y materiales para la red de agua caliente desde la salida del calentador hasta cada conexión con el punto de agua caliente. Incluye pruebas y accesorios para su correcta instalación). ",null,null,null,{"$f":"SUM(G235:G240)","v":0}]
[null,"7.6.1","TUBERIA CPVC 3/4\" ","m",21,null,0]
[null,"7.6.2","ACCESORIOS CPVC 3/4\"","Und",30,null,0]
[null,"7.6.3","TUBERIA CPVC 1/2\"","m",12,null,{"$f":"+ROUND(E237*F237,0)","v":0}]
[null,"7.6.4","ACCESORIOS CPVC 1/2\"","Und",20,null,0]
[null,"7.6.5","CHEQUE HIDRO 1/2\"","Und",4,null,0]
[null,"7.6.6","REGISTRO BOLA 1/2\"","Und",4,null,0]
[null,"7.7","PUNTOS HIDRÁULICOS AGUA CALIENTE (Incluye el suministro, instalación, mano obra, transporte, prueba de la tuberia y accesorios requeridos para realizar la conexión de agua a los aparatos sanitarios o puntos de abastecimiento. Incluye accesorio de cambio de dirección). Comprende el tramo vertical a partir del codo mediante el cual se realiza el cambio de dirección de horizontal en la red , a vertical en el paral de abastecimiento).",null,null,null,{"$f":"SUM(G242:G243)","v":0}]
[null,"7.7.1","DUCHAS","Und",12,null,0]
[null,"7.7.2","CALENTADOR","Und",3,null,0]
[null,"7.8","RED DE CONTRA INCENDIO (Incluye: mano de obra, tranporte, herramienta y materiales para la red contra incendio desde la salida del cuarto de bombas cada uno hasta los gabinetes y conexiones de manguera en cada piso. Pruebas y ensayos).",null,null,null,{"$f":"SUM(G245:G298)","v":0}]
[null,"7.8.1","TUBERIA PVC C900 6\"","m",18,null,0]
[null,"7.8.2","TUBERIA ACERO NEGRO SCH 10 RANURADA 6\"","m",6,null,0]
[null,"7.8.3","TUBERIA ACERO NEGRO SCH 10 RANURADA 4\"","m",140,null,0]
[null,"7.8.4","TUBERIA ACERO NEGRO SCH 10 RANURADA 3\"","m",110,null,0]
[null,"7.8.5","TUBERIA ACERO NEGRO SCH 40 ROSCADA 2 1/2\"","m",6,null,0]
[null,"7.8.6","TUBERIA ACERO NEGRO SCH 10 RANURADA 2 1/2\"\"","m",173,null,0]
[null,"7.8.7","TUBERIA ACERO NEGRO SCH 10 RANURADA 2\"","m",135,null,0]
[null,"7.8.8","TUBERIA ACERO NEGRO SCH 10 RANURADA 1 1/2\"","m",463,null,0]
[null,"7.8.9","TUBERIA ACERO NEGRO SCH 40 RANURADA - ROSCADA 1 1/4\"","m",304,null,0]
[null,"7.8.10","TUBERIA ACERO NEGRO SCH 40 ROSCADA 1\"","m",150,null,0]
[null,"7.8.11","TUBERIA ACERO NEGRO SCH 40 ROSCADA 1/2\"","m",24,null,0]
[null,"7.8.12","TRANSICIÓN PVC C900 A ACERO NEGRO 4\"","Und",1,null,0]
[null,"7.8.13","ACCESORIO HIERRO DÚCTIL 4\"","Und",4,null,0]
[null,"7.8.14","ACCESORIO RANURADO HD 6\"","Und",8,null,0]
[null,"7.8.15","ACOPLE RIGIDO 6\"","Und",16,null,0]
[null,"7.8.16","ACCESORIO RANURADO HD 4\"","Und",40,null,0]
[null,"7.8.17","ACOPLE RIGIDO 4\"","Und",60,null,0]
[null,"7.8.18","ACCESORIO RANURADO HD 3\"","Und",40,null,0]
[null,"7.8.19","ACOPLE RIGIDO 3\"","Und",60,null,0]
[null,"7.8.20","ACCESORIO RANURADO HD 2 1/2\"","Und",90,null,0]
[null,"7.8.21","ACOPLE RIGIDO 2 1/2\"","Und",270,null,0]
[null,"7.8.22","ACCESORIO RANURADO HD 2\"","Und",70,null,0]
[null,"7.8.23","ACOPLE RIGIDO 2\"","Und",210,null,0]
[null,"7.8.24","ACCESORIO RANURADO HD 1 1/2\"","Und",230,null,0]
[null,"7.8.25","ACOPLE RIGIDO 1 1/2\"","Und",690,null,0]
[null,"7.8.26","ACCESORIO RANURADO HD 1 1/4\"","Und",150,null,0]
[null,"7.8.27","ACOPLE RIGIDO 1 1/4\"","Und",450,null,0]
[null,"7.8.28","ACCESORIO ROSCADO AC 1\"","Und",80,null,0]
[null,"7.8.29","ACCESORIO ROSCADO AC 1 1/2\"","Und",200,null,0]
[null,"7.8.30","ROCIADOR AUTOMATICO K5,6 ","Und",168,null,0]
[null,"7.8.31","PUNTO ROCIADOR AUTOMATICO K5,6 ","Und",168,null,0]
[null,"7.8.32","VÁLVULA DE MARIPOSA (UL/FM) 3\"","Und",4,null,0]
[null,"7.8.33","SENSOR DE FLUJO (UL/FM) 3\"","Und",4,null,0]
[null,"7.8.34","VALVULA DE PRUEBA Y DRENAJE (UL/FM) 1","Und",4,null,0]
[null,"7.8.35","MANOMETRO 300PSI GLICERINA (UL/FM)","Und",4,null,0]
[null,"7.8.36","CHEQUE (UL/FM) 3\"","Und",4,null,0]
[null,"7.8.37","CHEQUE (UL/FM) 4\"","Und",2,null,0]
[null,"7.8.38","SIAMESA 4\"x2.1/2\"x2.1/2\"(UL/FM)","Und",2,null,0]
[null,"7.8.39","VÁLVULA EXPULSORA DE AIRE (UL/FM) 1 1/2\"","Und",4,null,0]
[null,"7.8.40","SOPORTE SENCILLO UL/FM 6\"","Und",10,null,0]
[null,"7.8.41","SOPORTE SENCILLO UL/FM 4\"","Und",140,null,0]
[null,"7.8.42","SOPORTE CUATRO VÍAS UL/FM 4\"","Und",10,null,0]
[null,"7.8.43","PINTURA DE TUBERÍA 4\"","m",140,null,0]
[null,"7.8.44","PINTURA DE TUBERÍA 3\"","m",110,null,0]
[null,"7.8.45","PINTURA DE TUBERÍA 2 1/2\"","m",179,null,0]
[null,"7.8.46","PINTURA DE TUBERÍA 2\"","m",135,null,0]
[null,"7.8.47","PINTURA DE TUBERÍA 1,1/2\"","m",463,null,0]
[null,"7.8.48","PINTURA DE TUBERÍA 1,1/4\"","m",304,null,0]
[null,"7.8.49","PINTURA DE TUBERÍA 1\"","m",150,null,0]
[null,"7.8.50","PINTURA DE TUBERÍA 1/2\"","m",24,null,0]
[null,"7.8.51","EXCAVACIÓN MANUAL","m³",7,null,0]
[null,"7.8.52","RELLENO CAMA DE ARENA","m³",3,null,0]
[null,"7.8.53","RELLENO EN MATERIAL SELECCIONADO","m³",4,null,0]
[null,"7.8.54","RETIRO DE SOBRANTES","m³",3,null,0]
[null,"7.9","SUMINISTRO, CONEXIÓN Y MONTAJAJE DE GABINETE CONTRAINCENDIO CLASE III (Incluye: mano de obra, transporte, herramienta y materiales para la instalación de cada uno de los gabinetes contra incendio del proyecto. Los gabinetes deben incluir valvula tipo restrictora 1 1/2\", manguera 1 1/2\", boquilla 1 1/2\", extintor, llave spanner, soporte tipo cortina, hacha, pintura según especificación y respectivas pruebas y ensayos).",null,null,null,{"$f":"SUM(G300:G301)","v":0}]
[null,"7.9.1","SUMINISTRO GABINETE CLASE III","Und ",6,null,0]
[null,"7.9.2","VALVULA BOMBEROS 2 1/2\"","Und ",6,null,0]
[null,"7.10","RAMALES DE AGUAS LLUVIAS (INLCUYE: mano de obra, herramienta, transporte, pruebas y ensayos, y materiales para la instalación de los tramos horizontales en cubierta, desvios de bajantes en los pisos según planos, tramos horizontales desde el piso 3 a piso 1. Se incluyen las redes de piso 1, accesorios y demás para su correcta instalación).",null,null,null,{"$f":"SUM(G303:G323)","v":0}]
[null,"7.10.1","TUBERIA PVCS 6\"","m",108,null,0]
[null,"7.10.2","TUBERIA PVCS 4\"","m",158,null,0]
[null,"7.10.3","TUBERIA PVCS 3\"","m",35,null,{"$f":"+ROUND(E305*F305,0)","v":0}]
[null,"7.10.4","ACCESORIOS PVCS 6\"","Und",34,null,0]
[null,"7.10.5","ACCESORIOS PVCS 4\"","Und",250,null,0]
[null,"7.10.6","ACCESORIOS PVCS 3\"","Und",20,null,0]
[null,"7.10.7","TRAGANTE 8\" x 6\"","Und",4,null,0]
[null,"7.10.8","TRAGANTE 6\" x 4\"","Und",17,null,0]
[null,"7.10.9","SIFON 4\"","Und",12,null,0]
[null,"7.10.10","SIFON 3\"","Und",3,null,0]
[null,"7.10.11","GÁRGOLA","Und",18,null,0]
[null,"7.10.12","ABRAZADERAS 6\"","Und",20,null,0]
[null,"7.10.13","ABRAZADERAS 4\"","Und",75,null,0]
[null,"7.10.14","ABRAZADERAS 3\"","Und",3,null,0]
[null,"7.10.15","EXCAVACIÓN MANUAL","m³",107,null,0]
[null,"7.10.16","RELLENO CAMA DE GRAVILLA","m³",18,null,0]
[null,"7.10.17","RELLENO CAMA DE ARENA","m³",10.7,null,0]
[null,"7.10.18","RELLENO EN MATERIAL SELECCIONADO","m³",96.3,null,0]
[null,"7.10.19","RETIRO DE SOBRANTES","m³",134,null,0]
[null,"7.10.20","ROTURA Y REPOSICIÓN DE ANDEN","m²",18,null,0]
[null,"7.10.21","ROTURA Y REPOSICIÓN DE PAVIMENTO","m²",36,null,0]
[null,"7.11","BAJANTES DE AGUAS LLUVIAS (INLCUYE: mano de obra, herramienta, transporte, pruebas y ensayos, y materiales para la instalación accesorios y demás para su correcta instalación).",null,null,null,{"$f":"SUM(G325:G327)","v":0}]
[null,"7.11.1","TUBERIA PVC S 4\"","m",60,null,0]
[null,"7.11.2","ABRAZADERAS 4\"","Und",28,null,0]
[null,"7.11.3","JUNTA DE EXPANSIÓN 4\"","Und",10,null,0]
[null,"7.12","FILTRO (Inlcuye: Mano de obra, herramienta, pruebas y ensayos, y materiales para la correcta instalación del filtro en el Piso 1)",null,null,null,{"$f":"SUM(G329:G331)","v":0}]
[null,"7.12.1","TUBERIA PVC PERFORADA 4\"","m",50,null,0]
[null,"7.12.2","ACCESORIO PVC S 4\"","Und",4,null,0]
[null,"7.12.3","EXCAVACIÓN MANUAL","m³",7,null,0]
[null,"7.13","RAMALES DE AGUAS NEGRAS (Incluye: mano de obra, herramienta y materiales para la correcta instalación de los tramos horizontales de aguas residuales desde el Piso 3 hasta el Piso 1. Accesrios, pruebas y sensayos, y demás). ",null,null,null,{"$f":"SUM(G333:G349)","v":0}]
[null,"7.13.1","TUBERIA PVCS 6\"","m",12,null,0]
[null,"7.13.2","TUBERIA PVCS 4\"","m",240,null,0]
[null,"7.13.3","TUBERIA PVCS 3\"","m",9,null,0]
[null,"7.13.4","TUBERIA PVCS 2\"","m",70,null,0]
[null,"7.13.5","ACCESORIOS PVCS 6\"","Und",6,null,0]
[null,"7.13.6","ACCESORIOS PVCS 4\"","Und",172,null,0]
[null,"7.13.7","ACCESORIOS PVCS 3\"","Und",38,null,0]
[null,"7.13.8","ACCESORIOS PVCS 2\"","Und",222,null,0]
[null,"7.13.9","ABRAZADERAS 4\"","Und",22,null,0]
[null,"7.13.10","ABRAZADERAS 3\"","Und",28,null,0]
[null,"7.13.11","ABRAZADERAS 2\"","Und",28,null,0]
[null,"7.13.12","EXCAVACIÓN MANUAL","m³",95.5,null,0]
[null,"7.13.13","RELLENO CAMA DE ARENA","m³",8.6999999999999993,null,0]
[null,"7.13.14","RELLENO EN MATERIAL SELECCIONADO","m³",86.8,null,0]
[null,"7.13.15","RETIRO DE SOBRANTES","m³",120,null,0]
[null,"7.13.16","ROTURA Y REPOSICIÓN DE ANDEN","m²",18,null,0]
[null,"7.13.17","ROTURA Y REPOSICIÓN DE PAVIMENTO","m²",36,null,0]
[null,"7.14","BAJANTES DE AGUAS NEGRAS (Incluye mano de obra, herramienta, sumnistre y transporte, pruebas y ensayos, y materiales para la correcta instalación de los tramos verticales desde la conexión con las redes enterradas en Piso 1.",null,null,null,{"$f":"SUM(G351:G354)","v":0}]
[null,"7.14.1","TUBERIA PVC S 4\"","m",44,null,0]
[null,"7.14.2","ACCESORIOS PVCS 4\"","Und",22,null,0]
[null,"7.14.3","ABRAZADERAS 4\"","Und",22,null,0]
[null,"7.14.4","JUNTA DE EXPANSIÓN 4\"","Und",10,null,0]
[null,"7.15","SALIDAS SANITARIAS (Incluye: suministro, instalación, prueba de la tuberia y accesorios requeridos para realizar la correcta conexión de aguas residuales domesticas de los aparatos sanitarios o puntos de descarga. Comprende el tramo vertical desde la boca de conexión del aparato hasta el accesorio de conexión con la red  horizontal y demás elemntos para su instalación y funcionamiento).",null,null,null,{"$f":"SUM(G356:G361)","v":0}]
[null,"7.15.1","PUNTO SANITARIO 4\"","Und",25,null,0]
[null,"7.15.2","LAVAMANOS 2\"","Und",31,null,0]
[null,"7.15.3","DUCHAS 2\"","Und",12,null,0]
[null,"7.15.4","ORINAL 2\"","Und",1,null,0]
[null,"7.15.5","LAVAPLATOS 2\"","Und",10,null,0]
[null,"7.15.6","SIFON DE PISO 2\"","Und",32,null,0]
[null,"7.16","RAMALES Y COLUMNAS DE VENTILACION Y REVENTILACION (Incluye: mano de obra, suministro e instalación, transporte, pruebas y ensayos, herramienta y materiales para la instalación de los tramos verticales, horizontales y desvíos de las bajantes de ventilaciones y reventilaciones, desde la conexión con las colgantes principales bajo primer piso hasta cubierta, y demás elementos).",null,null,null,{"$f":"SUM(G363:G366)","v":0}]
[null,"7.16.1","TUBERIA PVC L 2\"","m",24,null,0]
[null,"7.16.2","ACCESORIOS PVCS 2\"","Und",30,null,0]
[null,"7.16.3","ABRAZADERAS 2\"","Und",15,null,0]
[null,"7.16.4","VALVULA MINIVENT 2\"","Und",25,null,0]
[null,"7.17","TAPONES PARA INSTALACIONES HIDRAULICAS, SANITARIAS Y AGUAS LLUVIAS",null,null,null,{"$f":"SUM(G368:G373)","v":0}]
[null,"7.17.1","TAPON PVC S 6\"","Und",4,null,0]
[null,"7.17.2","TAPON PVC S 4\"","Und",54,null,0]
[null,"7.17.3","TAPON PVC S 3\"","Und",3,null,{"$f":"+ROUND(E370*F370,0)","v":0}]
[null,"7.17.4","TAPON PVC S 2\"","Und",86,null,0]
[null,"7.17.5","TAPON PVC P 1/2\"","Und",81,null,0]
[null,"7.17.6","TAPON CPVC 1/2\"","Und",15,null,0]
[null,"7.18","SUMINISTRO DE EQUIPOS (Incluye: Suministro, transporte, elementos necesarios para su instalación y funcionamiento, pruebas y ensayos. De acuerdo a especificaciones técnicas y de diseño).  ",null,null,null,{"$f":"SUM(G375:G378)","v":0}]
[null,"7.18.1","EQUIPO AGUA POTABLE ","Und",1,null,0]
[null,"7.18.2","EQUIPO CONTRAINCENDIO (PRINCIPAL + JOCKEY)","Und",1,null,0]
[null,"7.18.3","TANQUE HIDROACUMULADOR","Und",1,null,0]
[null,"7.18.4","EQUIPO EYECTOR (2 BOMBAS SUMERGIBLES)","Und",1,null,0]
[null,"7.19","CONSTRUCCIONES EN CONCRETO Y MAMPOSTERÍA AGUAS NEGRAS Y AGUAS LLUVIAS (Incluye mano de obra, suministros y equipos, formaleta y demás necesarios).",null,null,null,{"$f":"SUM(G380:G382)","v":0}]
[null,"7.19.1","CAJA DE INSPECCIÓN  (0.60 x 0.60)","Und",17,null,0]
[null,"7.19.2","POZO DE INSPECCIÓN","Und",4,null,0]
[null,"7.19.3","TRAMPA DE GRASAS","Und",1,null,0]
[null,"7.20","MONTAJE Y CONEXIÓN APARATOS SANITARIOS (Incluye: Suministro, transporte, mano de obra, herramienta y accesorios necesarios para la correcta instalación de los aparatos y cajas o equipos de bombeo).",null,null,null,{"$f":"SUM(G384:G391)","v":0}]
[null,"7.20.1","MONTAJE SANITARIOS TANQUE","Und",25,null,0]
[null,"7.20.2","MONTAJE LAVAMANOS","Und",31,null,0]
[null,"7.20.3","MONTAJE DUCHAS","Und",12,null,0]
[null,"7.20.4","MONTAJE LAVAPLATOS","Und",10,null,0]
[null,"7.20.5","MONTAJE ORINAL","Und",1,null,0]
[null,"7.20.6","MONTAJE LLAVE MANGUERA","Und",1,null,0]
[null,"7.20.7","MONTAJE GABINETE INCENDIO CLASE III","Und",6,null,0]
[null,"7.20.8","MONTAJE TOMA BOMBEROS 2 1/2\"","Und",6,null,0]
[null,"7.21","MONTAJE Y CONEXIÓN EQUIPOS (Incluye: mano de obra, herramienta y accesorios necesarios para la corecta instalación de los equipos de bombeo).",null,null,null,{"$f":"SUM(G393:G397)","v":0}]
[null,"7.21.1","MONTAJE BOMBA CENTRIFUGA","Und",2,null,0]
[null,"7.21.2","MONTAJE TANQUE HIDROACUMULADOR ","Und",1,null,0]
[null,"7.21.3","MONTAJE BOMBA LIDER INCENDIO ","Und",1,null,0]
[null,"7.21.4","MONTAJE BOMBA JOCKEY","Und",1,null,0]
[null,"7.21.5","MONTAJE BOMBAS EYECTORAS","Und",2,null,0]
[null,"7.23","LAVADO Y DESINFECCIÓN  DEL SISTEMA DE AGUA POTABLE E INCENDIO",null,null,null,{"$f":"SUM(G399:G400)","v":0}]
[null,"7.23.1","LAVADO Y DESINFECCIÓN TANQUE DE AGUA POTABLE SEGÚN ESPECIFICACIÓN","Und",1,null,0]
[null,"7.23.2","LAVADO Y DESINFECCIÓN TANQUE DE AGUA INCENDIO SEGÚN ESPECIFICACIÓN","Und",1,null,0]
[null,"7.26","RED GAS NATURAL","Globalobal",{"$error":"#N/A"},0,{"$f":"SUM(G402:G408)","v":0}]
[null,"7.26.1","TUBERIA A.G. SCHD 40","m",42,null,0]
[null,"7.26.2","ACCESORIO A.G.","m",30,null,0]
[null,"7.26.3","VALVULA DE BOLA GAS","Und",4,null,0]
[null,"7.26.4","PUNTOS DE GAS","m",2,null,0]
[null,"7.26.5","CONEXIÓN DE APARATO","m",2,null,0]
[null,"7.26.6","CAÑUELA RECUBRIMIENTO EN TUBERIA PVC FLEXIBLE","Und",42,null,0]
[null,"7.26.7","CAJA MEDIDOR ","Und",1,null,0]
[null,8,"INSTALACIONES ELÉCTRICAS, VOZ, DATOS, SEGURIDAD Y CONTROL SEGÚN PLANOS Y ESPECIFICACIONES TÉCNICAS (Incluye herramientas, equipos, transporte interno y externo, mano de obra, pruebas y ensayos para su correcta ejecución y recibo a satisfacción. Conforme a los planos y especificaciones técnicas)."]
[null,"8,1","SALIDAS ELÉCTRICAS",null,null,null,{"$f":"SUM(G411:G436)","v":0}]
[null,"8,1.1","SALIDA PARA LUMINARIA EN CABLE DE COBRE AISLADO CALIBRE 12 AWG LSHF, TUBERÍA PVC CONDUIT DE Ф1/2\" Y Ф3/4\", INCLUYE CAJAS DE PASO, CONECTORES, SOPORTES Y DEMÁS ACCESORIOS NECESARIOS PARA SU CORRECTO FUNCIONAMIENTO SEGÚN PLANOS Y ESPECIFICACIONES TÉCNICAS.","Und",476,null,{"$f":"+ROUND(E411*F411,0)","v":0}]
[null,"8,1.2","SUMINISTRO E INSTALACIÓN DE INTERRUPTOR SENCILLO TIPO INSTITUCIONAL, INCLUYE APARATO, CABLE DE COBRE AISLADO CALIBRE 12 AWG LSHF, TUBERÍA PVC CONDUIT DE Ф1/2\", INCLUYE CAJAS DE PASO, CONECTORES, SOPORTES Y DEMÁS ACCESORIOS NECESARIOS PARA SU CORRECTO FUNCIONAMIENTO SEGÚN PLANOS Y ESPECIFICACIONES TÉCNICAS.","Und",6,null,0]
[null,"8,1.3","SUMINISTRO E INSTALACIÓN DE INTERRUPTOR DOBLE TIPO INSTITUCIONAL, INCLUYE APARATO, CABLE DE COBRE AISLADO CALIBRE 12 AWG LSHF, TUBERÍA PVC CONDUIT DE Ф1/2\", INCLUYE CAJAS DE PASO, CONECTORES, SOPORTES Y DEMÁS ACCESORIOS NECESARIOS PARA SU CORRECTO FUNCIONAMIENTO SEGÚN PLANOS Y ESPECIFICACIONES TÉCNICAS.","Und",23,null,0]
[null,"8,1.4","SUMINISTRO E INSTALACIÓN DE SENSOR DE OCUPACIÓN PARA INSTALACIÓN EN TECHO TIPO INSTITUCIONAL, INCLUYE APARATO, CABLE DE COBRE AISLADO CALIBRE 12 AWG LSHF, TUBERÍA PVC CONDUIT DE Ф1/2\", INCLUYE CAJAS DE PASO, CONECTORES, SOPORTES Y DEMÁS ACCESORIOS NECESARIOS PARA SU CORRECTO FUNCIONAMIENTO SEGÚN PLANOS Y ESPECIFICACIONES TÉCNICAS.","Und",36,null,0]
[null,"8,1.5","SALIDA PARA LUMINARIA DE EMERGENCIA EN CABLE DE COBRE AISLADO CALIBRE 12 AWG LSHF, TUBERÍA PVC CONDUIT DE Ф1/2\", INCLUYE CAJAS DE PASO, CONECTORES DE RESORTE, SOPORTES Y DEMÁS ACCESORIOS NECESARIOS PARA SU CORRECTO FUNCIONAMIENTO SEGÚN PLANOS Y ESPECIFICACIONES TÉCNICAS.","Und",83,null,0]
[null,"8,1.6","SALIDA PARA TOMACORRIENTE DOBLE RED NORMAL TIPO INSTITUCIONAL 5-15R, INCLUYE APARATO, CABLE DE COBRE AILSADO CALIBRE 12 AWG LSHF, TUBERÍA CONDUIT PVC DE Ф1/2\", CAJAS DE PASO, CONECTORES, SOPORTES Y DEMÁS ACCESORIOS NECESARIOS PARA SU CORRECTO FUNCIONAMIENTO SEGÚN PLANOS Y ESPECIFICACIONES TÉCNICAS","Und",129,null,0]
[null,"8,1.7","SALIDA PARA TOMACORRIENTE DOBLE GFCI RED NORMAL TIPO INSTITUCIONAL 5-15R, INCLUYE APARATO, CABLE DE COBRE AILSADO CALIBRE 12 AWG LSHF, TUBERÍA CONDUIT PVC DE Ф1/2\", INCLUYE CAJAS DE PASO, CONECTORES, SOPORTES Y DEMÁS ACCESORIOS NECESARIOS PARA SU CORRECTO FUNCIONAMIENTO SEGÚN PLANOS Y ESPECIFICACIONES TÉCNICAS","Und",13,null,0]
[null,"8,1.8","SALIDA PARA TOMACORRIENTE DOBLE RED REGULADA TIPO INSTITUCIONAL 5-15R, INCLUYE APARATO, CABLE DE COBRE AILSADO CALIBRE 12 AWG LSHF, TUBERÍA CONDUIT PVC DE Ф1/2\", CANALETA , CAJAS DE PASO, CONECTORES, SOPORTES Y DEMÁS ACCESORIOS NECESARIOS PARA SU CORRECTO FUNCIONAMIENTO SEGÚN PLANOS Y ESPECIFICACIONES TÉCNICAS","Und",9,null,0]
[null,"8,1.9","SALIDA PARA AMPLIFICADOR DE TV, INCLUYE APARATO, CABLE DE COBRE AILSADO CALIBRE 12 AWG LSHF, TUBERÍA CONDUIT PVC DE Ф1/2\", CAJAS DE PASO, CONECTORES, SOPORTES Y DEMÁS ACCESORIOS NECESARIOS PARA SU CORRECTO FUNCIONAMIENTO SEGÚN PLANOS Y ESPECIFICACIONES TÉCNICAS","Und",1,null,0]
[null,"8,1.10","SALIDA PARA STRIP DE COMUNICACIONES/SEGURIDAD (MDF/IDF), INCLUYE APARATO, CABLE DE COBRE AILSADO CALIBRE 12 AWG LSHF, TUBERÍA CONDUIT PVC DE Ф1/2\", CAJAS DE PASO, CONECTORES, SOPORTES Y DEMÁS ACCESORIOS NECESARIOS PARA SU CORRECTO FUNCIONAMIENTO SEGÚN PLANOS Y ESPECIFICACIONES TÉCNICAS","Und",3,null,0]
[null,"8,1.11","SALIDAS ESPECIALES MONOFÁSICAS, INCLUYE APARATO, CABLE DE COBRE AILSADO CALIBRE 12 AWG LSHF HASTA, TUBERÍA CONDUIT PVC DE Ф1/2\", CAJAS DE PASO, CONECTORES, SOPORTES Y DEMÁS ACCESORIOS NECESARIOS PARA SU CORRECTO FUNCIONAMIENTO SEGÚN PLANOS Y ESPECIFICACIONES TÉCNICAS","Und",16,null,0]
[null,"8,1.12","SALIDAS ESPECIALES TRIFÁSICAS, INCLUYE APARATO, CABLE DE COBRE AILSADO CALIBRE 8 AWG LSHF HASTA, TUBERÍA CONDUIT PVC DE Ф1\", CAJAS DE PASO, CONECTORES, SOPORTES Y DEMÁS ACCESORIOS NECESARIOS PARA SU CORRECTO FUNCIONAMIENTO SEGÚN PLANOS Y ESPECIFICACIONES TÉCNICAS","Und",9,null,0]
[null,"8,1.13","SALIDAS ESPECIALES PARA UPS, INCLUYE APARATO, CABLE DE COBRE AILSADO CALIBRE 10 AWG LSHF HASTA, TUBERÍA CONDUIT PVC DE Ф1/2\", CAJAS DE PASO, CONECTORES, SOPORTES Y DEMÁS ACCESORIOS NECESARIOS PARA SU CORRECTO FUNCIONAMIENTO SEGÚN PLANOS Y ESPECIFICACIONES TÉCNICAS","Und",1,null,0]
[null,"8,1.14","SALIDA PARA TOMACORRIENTE EN CABINA DE ASCENSOR, INCLUYE APARATO, CABLE DE COBRE AILSADO CALIBRE 12 AWG LSHF, TUBERÍA CONDUIT PVC DE Ф1/2\", CAJAS DE PASO, CONECTORES, SOPORTES Y DEMÁS ACCESORIOS NECESARIOS PARA SU CORRECTO FUNCIONAMIENTO SEGÚN PLANOS Y ESPECIFICACIONES TÉCNICAS","Und",1,null,0]
[null,"8,1.15","SALIDA ESPECIAL BIFÁSICA PARA PRECALENTADOR DE CAMISAS EN CUARTO DE GRUPO ELECTRÓGENO, INCLUYE APARATO, CABLE DE COBRE AILSADO CALIBRE 12 AWG LSHF, TUBERÍA CONDUIT PVC DE Ф1/2\", CAJAS DE PASO, CONECTORES, SOPORTES Y DEMÁS ACCESORIOS NECESARIOS PARA SU CORRECTO FUNCIONAMIENTO SEGÚN PLANOS Y ESPECIFICACIONES TÉCNICAS","Und",1,null,0]
[null,"8,1.16","SALIDA ESPECIAL MONOFÁSICA PARA CARGADOR DE BATERÍAS EN CUARTO DE GRUPO ELECTRÓGENO, INCLUYE APARATO, CABLE DE COBRE AILSADO CALIBRE 12 AWG LSHF, TUBERÍA CONDUIT PVC DE Ф1/2\", CAJAS DE PASO, CONECTORES, SOPORTES Y DEMÁS ACCESORIOS NECESARIOS PARA SU CORRECTO FUNCIONAMIENTO SEGÚN PLANOS Y ESPECIFICACIONES TÉCNICAS","Und",1,null,0]
[null,"8,1.17","SALIDA SENCILLA RJ45 CATEGORÍA 6A TIPO INSTITUCIONAL, INCLUYE FACEPLATE, CABLE UTP CAT 6A, TUBERÍA CONDUIT PVC DE Ф3/4\", CANALETA METÁLICA 12x5cm, CAJAS DE PASO, CONECTORES, SOPORTES Y DEMÁS ACCESORIOS NECESARIOS PARA SU CORRECTO FUNCIONAMIENTO SEGÚN PLANOS Y ESPECIFICACIONES TÉCNICAS","Und",51,null,0]
[null,"8,1.18","SALIDA PARA TV TIPO INSTITUCIONAL, INCLUYE APARATO, CABLE COAXIAL RG59U, TUBERÍA CONDUIT PVC DE Ф3/4\", CAJAS DE PASO, CONECTORES, SOPORTES Y DEMÁS ACCESORIOS NECESARIOS PARA SU CORRECTO FUNCIONAMIENTO SEGÚN PLANOS Y ESPECIFICACIONES TÉCNICAS","Und",6,null,0]
[null,"8,1.19","SALIDA PARA GRABADORA DIGITAL DE VIDEO DVR Y MONITOR, INCLUYE FACEPLATE, CABLE UTP CAT 6A, TUBERÍA CONDUIT PVC DE Ф3/4\", CAJAS DE PASO, CONECTORES, SOPORTES Y DEMÁS ACCESORIOS NECESARIOS PARA SU CORRECTO FUNCIONAMIENTO SEGÚN PLANOS Y ESPECIFICACIONES TÉCNICAS","Und",2,null,0]
[null,"8,1.20","SALIDAS PARA CÁMARAS DE VIGILANCIA, INCLUYE TUBERÍA  CONDUIT PVC DE Ф3/4\", CAJAS DE PASO, CONECTORES, SOPORTES Y DEMÁS ACCESORIOS. NO INCLUYE CABLEADO. INSTALACIÓN SEGÚN PLANOS Y ESPECIFICACIONES TÉCNICAS","Und",26,null,0]
[null,"8,1.21","SALIDA PARA SONIDO, INCLUYE TUBERÍA CONDUIT PVC DE Ф3/4\", CABLE DÚPLEX 2x14 AWG, CAJAS DE PASO, CONECTORES, SOPORTES Y DEMÁS ACCESORIOS PARA SU CORRECTO FUNCIONAMIENTO SEGÚN PLANOS Y ESPECIFICACIONES TÉCNICAS.","Und",20,null,0]
[null,"8,1.22","SALIDA PARA BOMBAS DE SUMINISTRO EN CABLE DE COBRE CALIBRE 10 AWG LSHF, TUBERÍA CONDUIT IMC DE Ф3/4\", CONECTORES, SOPORTES Y DEMÁS ACCESORIOS NECESARIOS PARA SU CORRECTO FUNCIONAMIENTO SEGÚN PLANOS Y ESPECIFICACIONES TÉCNICAS.","Und",2,null,0]
[null,"8,1.23","SALIDA PARA BOMBA CONTRA INCENDIO EN CABLE DE COBRE CALIBRE 2 AWG LSHF, TUBERÍA CONDUIT IMC DE Ф3\", CONECTORES, SOPORTES Y DEMÁS ACCESORIOS NECESARIOS PARA SU CORRECTO FUNCIONAMIENTO SEGÚN PLANOS Y ESPECIFICACIONES TÉCNICAS.","Und",1,null,0]
[null,"8,1.24","SALIDA PARA BOMBAS EYECTORAS EN CABLE DE COBRE CALIBRE 12 AWG LSHF, TUBERÍA CONDUIT IMC DE Ф1/2\", CONECTORES, SOPORTES Y DEMÁS ACCESORIOS NECESARIOS PARA SU CORRECTO FUNCIONAMIENTO SEGÚN PLANOS Y ESPECIFICACIONES TÉCNICAS.","Und",2,null,0]
[null,"8,1.25","SALIDA PARA BOMBA JOCKEY EN CABLE DE COBRE CALIBRE 12 AWG LSHF, TUBERÍA CONDUIT IMC DE Ф1/2\", CONECTORES, SOPORTES Y DEMÁS ACCESORIOS NECESARIOS PARA SU CORRECTO FUNCIONAMIENTO SEGÚN PLANOS Y ESPECIFICACIONES TÉCNICAS.","Und",1,null,0]
[null,"8,1.26","SALIDA PARA BOMBAS DE AGUAS LLUVIA EN CABLE DE COBRE CALIBRE 10 AWG LSHF, TUBERÍA CONDUIT IMC DE Ф3/4\", CONECTORES, SOPORTES Y DEMÁS ACCESORIOS NECESARIOS PARA SU CORRECTO FUNCIONAMIENTO SEGÚN PLANOS Y ESPECIFICACIONES TÉCNICAS.","Und",4,null,0]
[null,"8,2","TABLEROS Y GABINETES",null,null,null,{"$f":"SUM(G438:G444)","v":0}]
[null,"8,2.1","SUMINISTRO E INSTALACIÓN DE TABLERO DE ILUMINACIÓN DE 36 Ctos, Trifásico, 4H, T, 208/120V, 225A, INCLUYE BREAKERS DE PROTECCIÓN, TOTALIZADOR, SEÑALIZACIONES, CONECTORES, SOPORTES Y DEMÁS ACCESORIOS NECESARIOS PARA SU INSTALACIÓN Y CORRECTO FUNCIONAMIENTO SEGÚN PLANOS Y ESPECIFICACIONES TÉCNICAS","Und",3,null,0]
[null,"8,2.2","SUMINISTRO E INSTALACIÓN DE TABLERO DE ILUMINACIÓN DE 42 Ctos, Trifásico, 4H, T, 208/120V, 225A, INCLUYE BREAKERS DE PROTECCIÓN, TOTALIZADOR, SEÑALIZACIONES, CONECTORES, SOPORTES Y DEMÁS ACCESORIOS NECESARIOS PARA SU INSTALACIÓN Y CORRECTO FUNCIONAMIENTO SEGÚN PLANOS Y ESPECIFICACIONES TÉCNICAS","Und",1,null,0]
[null,"8,2.3","SUMINISTRO E INSTALACIÓN DE ARMARIO DE MEDIDA (AM-C) ZONAS COMUNES NORMA CODENSA AE 319, INCLUYE MEDIDOR ELECTRÓNICO CALSE 0,5S, TRANSFORMADORES DE CORRIENTE TIPO VENTANA 400/5A, TOTALIZADOR 500A, CONECTORES, SOPORTES Y DEMÁS ACCESORIOS PARA SU CORRECTO FUNCIONAMIENTO SEGÚN PLANOS Y ESPECIFICACIONES TÉCNICAS.","Und",1,null,0]
[null,"8,2.4","SUMINISTRO E INSTALACIÓN DE ARMARIO DE MEDIDA (AM-BI) BOMBA CONTRA INCENDIO NORMA CODENSA AE 319, INCLUYE MEDIDOR ELECTRÓNICO CALSE 0,5S, TRANSFORMADORES DE CORRIENTE TIPO VENTANA 100/5A, TOTALIZADOR 700A TERMOMAGNÉTICO, CONECTORES, SOPORTES Y DEMÁS ACCESORIOS PARA SU CORRECTO FUNCIONAMIENTO SEGÚN PLANOS Y ESPECIFICACIONES TÉCNICAS.","Und",1,null,0]
[null,"8,2.5","SUMINISTRO E INSTALACIÓN DE TABLERO GENERAL DE DISTRIBUCIÓN (TGD), INCLUYE BREAKERS DE PROTECCIÓN, BARRAJES, SEÑALIZACIÓN, CONECTORES, SOPORTES Y DEMÁS ACCESORIOS PARA SU CORRECTO FUNCIONAMIENTO SEGÚN PLANOS Y ESPECIFICACIONES TÉCNICAS.","Und",1,null,0]
[null,"8,2.8","SUMINISTRO E INSTALACIÓN DE STRIP DE COMUNICACIONES/SEGURIDAD, INCLUYE RACK CERRADO DE 60x60x60cm, PATCH PANEL CATEGORÍA 6 DE 24 PUERTOS, BANDEJAS PARA RACK, MULTITOMAS, CONECTORES, SOPORTES Y DEMÁS ACCESORIOS PARA SU CORRECTO FUNCIONAMIENTO SEGÚN PLANOS Y ESPECIFICACIONES TÉCNICAS.","Und",3,null,0]
[null,"8,2.9","SUMINISTRO E INSTALACIÓN DE AMPLIFICADOR DE TV, INCLUYE  AMPLIFICADOR PARA TV, CONECTORES, SOPORTES Y DEMÁS ACCESORIOS PARA SU CORRECTO FUNCIONAMIENTO SEGÚN PLANOS Y ESPECIFICACIONES TÉCNICAS.","Und",1,null,0]
[null,"8,3","ACOMETIDAS ELÉCTRICAS",null,null,null,{"$f":"SUM(G446:G452)","v":0}]
[null,"8,3.1","SUMINISTRO E INSTALACIÓN DE ACOMETIDA EN  3X350F + 350N + 2/0T Cu AWG LSHF- Cárcamo, INCLUYE CONECTORES, SOPORTES Y DEMÁS ACCESORIOS PARA SU CORRECTO FUNCIONAMIENTO SEGÚN PLANOS Y ESPECIFICACIONES TÉCNICAS.","m",70,null,0]
[null,"8,3.2","SUMINISTRO E INSTALACIÓN DE ACOMETIDA EN (3X10F + 10T Cu) AWG LSHF - Ф3/4\" PVC, INCLUYE CONECTORES, SOPORTES Y DEMÁS ACCESORIOS PARA SU CORRECTO FUNCIONAMIENTO SEGÚN PLANOS Y ESPECIFICACIONES TÉCNICAS.","m",50,null,0]
[null,"8,3.3","SUMINISTRO E INSTALACIÓN DE ACOMETIDA EN  (3X6F +8T Cu) AWG LSHF- Ф1,1/2\" PVC,  INCLUYE CONECTORES, SOPORTES Y DEMÁS ACCESORIOS PARA SU CORRECTO FUNCIONAMIENTO SEGÚN PLANOS Y ESPECIFICACIONES TÉCNICAS.","m",25,null,0]
[null,"8,3.4","SUMINISTRO E INSTALACIÓN DE ACOMETIDA EN (3X8F + 8T Cu) AWG LSHF - Ф1\" PVC, INCLUYE CONECTORES, SOPORTES Y DEMÁS ACCESORIOS PARA SU CORRECTO FUNCIONAMIENTO SEGÚN PLANOS Y ESPECIFICACIONES TÉCNICAS.","m",35,null,0]
[null,"8,3.5","SUMINISTRO E INSTALACIÓN DE ACOMETIDA EN  (3X2F + 4T Cu) AWG LSHF- Ф3\" PVC, INCLUYE CONECTORES, SOPORTES Y DEMÁS ACCESORIOS PARA SU CORRECTO FUNCIONAMIENTO SEGÚN PLANOS Y ESPECIFICACIONES TÉCNICAS.","m",70,null,0]
[null,"8,3.6","SUMINISTRO E INSTALACIÓN DE ACOMETIDA EN  (3X6F + 6N + 8T Cu) AWG LSHF- Ф1,1/2\" PVC, INCLUYE CONECTORES, SOPORTES Y DEMÁS ACCESORIOS PARA SU CORRECTO FUNCIONAMIENTO SEGÚN PLANOS Y ESPECIFICACIONES TÉCNICAS.","m",15,null,0]
[null,"8,3.10","SUMINISTRO E INSTALACIÓN DE ACOMETIDA EN (3X8F + 8N + 10T Cu) AWG LSHF - Ф1\" PVC, INCLUYE CONECTORES, SOPORTES Y DEMÁS ACCESORIOS PARA SU CORRECTO FUNCIONAMIENTO SEGÚN PLANOS Y ESPECIFICACIONES TÉCNICAS.","m",125,null,0]
[null,"8,4","ACOMETIDAS DATOS",null,null,null,{"$f":"SUM(G454:G455)","v":0}]
[null,"8,4.1","SUMINISTRO E INSTALACIÓN DE BANCO DE 3Ф3\" PVC PESADO PARA PROVEEDORES EXTERNOS TELEFÓNICOS, INCLUYE CONECTORES, SOPORTES Y DEMAS ACCESORIOS PARA SU CORRECTO FUNCIONAMIENTO SEGÚN PLANOS Y ESPECIFICACIONES TÉCNICAS","m",50,null,0]
[null,"8,4.2","SUMINISTRO E INSTALACIÓN ACOMETIDA EN Ф1\" PVC, INCLUYE CABLE UTP CATEGORÍA 6, CONECTORES, SOPORTES Y DEMÁS ACCESORIOS PARA SU CORRECTO FUNCIONAMIENTO SEGÚN PLANOS Y ESPECIFICACIONES TÉCNICAS.","m",50,null,0]
[null,"8,5","GRUPO ELECTRÓGENO",null,null,null,{"$f":"SUM(G457)","v":0}]
[null,"8,5.1","SUMINISTRO E INSTALACION GRUPO ELECTROGÉNO STAND BY DE  120KW-150KVA EFECTIVOS BOGOTÁ, INCLUYE EXOSTO, AISLAMIENTO TÉRMICO PARA DUCTO, TANQUE DE COMBUSTIBLE, TRANSFERENCIA AUTOMÁTICA, CABINA DE INSONORIZACIÓN, PROTECCIONES, CONECTORES, SOPORTES, TABLERO DE DISTRIBUCIÓN Y DEMÁS ACCESORIOS PARA SU CORRECTO FUNCIONAMIENTO SEGÚN PLANOS Y ESPECIFICACIONES TÉCNICAS.","Global",1,null,0]
[null,"8,6","ENERGÍAS ALTERNATIVAS",null,null,null,{"$f":"SUM(G459)","v":0}]
[null,"8,6.1","SUMINISTRO E INSTALACIÓN DE LUMINARIAS SOLARES TIPO ALUMBRADO PÚBLICO, CON PANEL SOLAR INTEGRADO DE INSTALACIÓN EN POSTE, CON DIFUSOR DE POLICARBONATO DE ALTA PUREZA, RESISTENTE A RADIACIONES UV, 6400lm MÍNIMO, DURACIÓN DE BATERÍAS MÍNIMO 7 HORAS, IP65. INCLUYE POSTES, ANCLAJES, CONECTORES Y DEMÁS ACCESORIOS PARA SU CORRECTO FUNCIONAMIENTO.","Global",2,null,0]
[null,"8,7","LUMINARIAS Y EQUIPOS",null,null,null,{"$f":"SUM(G461:G471)","v":0}]
[null,"8,7.1","SUMINISTRO E INSTALACIÓN DE SUMINISTRO E INSTALACIÓN DE LUMINARIA DE EMPOTRAR TIPO TITANIA 56W, 4000lm MÍN, CON SOPORTES Y DEMÁS ACCESORIOS NECESARIOS PARA SU CORRECTO FUNCIONAMIENTO SEGÚN PLANOS Y ESPECIFICACIONES TÉCNICAS., CON SOPORTES Y DEMÁS ACCESORIOS NECESARIOS PARA SU CORRECTO FUNCIONAMIENTO SEGÚN PLANOS Y ESPECIFICACIONES TÉCNICAS.","Und",171,null,0]
[null,"8,7.2","SUMINISTRO E INSTALACIÓN DE LUMINARIA HERMÉTICA TIPO LED, CON SENSOR INFRARROJO INTEGRADO EN LA LUMINARIA PARA CONTROL, DE INSTALACIÓN EN PLACA, CARCAZA EN POLICARBONATO, DIFUSOR EN ACRÍLICO DE ALTO IMPACTO, IP67, EFICIENCIA MÍNIMA DE 70lm/W Y DEMÁS ACCESORIOS NECESARIOS PARA SU CORRECTO FUNCIONAMIENTO SEGÚN PLANOS Y ESPECIFICACIONES TÉCNICAS.","Und",38,null,0]
[null,"8,7.3","SUMINISTRO E INSTALACIÓN DE REFLECTOR LED PARA EXTERIORES, CON SOPORTES Y DEMÁS ACCESORIOS NECESARIOS PARA SU CORRECTO FUNCIONAMIENTO SEGÚN PLANOS Y ESPECIFICACIONES TÉCNICAS.","Und",3,null,0]
[null,"8,7.4","SUMINISTRO E INSTALACIÓN DE PANEL LED REDONDO 3\" 12W, CON SOPORTES Y DEMÁS ACCESORIOS NECESARIOS PARA SU CORRECTO FUNCIONAMIENTO SEGÚN PLANOS Y ESPECIFICACIONES TÉCNICAS.","Und",52,null,0]
[null,"8,7.5","SUMINISTRO E INSTALACIÓN DE PANEL LED REDONDO 6\" 24W, CON SOPORTES Y DEMÁS ACCESORIOS NECESARIOS PARA SU CORRECTO FUNCIONAMIENTO SEGÚN PLANOS Y ESPECIFICACIONES TÉCNICAS.","Und",36,null,0]
[null,"8,7.6","SUMINISTRO E INSTALACIÓN DE PANEL LED REDONDO 4\" 12W, CON SOPORTES Y DEMÁS ACCESORIOS NECESARIOS PARA SU CORRECTO FUNCIONAMIENTO SEGÚN PLANOS Y ESPECIFICACIONES TÉCNICAS.","Und",74,null,0]
[null,"8,7.7","SUMINISTRO E INSTALACIÓN DE LUMINARIA DE EMERGENCIA TIPO LED 2x1.5W, DURACIÓN MÍNIMA DE BATERÍA DE 90min, CARCAZA TERMOPLÁSTICA, SCRATCH-RESISTANT, FUNCIÓN DE AUTODIAGNÓSTICO, CON SOPORTES Y DEMÁS ACCESORIOS NECESARIOS PARA SU CORRECTO FUNCIONAMIENTO SEGÚN PLANOS Y ESPECIFICACIONES TÉCNICAS.","Und",83,null,0]
[null,"8,7.8","SUMINISTRO E INSTALACIÓN DE PANEL LED DE 60X60cm PARA INCRUSTAR EN TECHO, 56W MÁX, EFICIENCIA MÍNIMA DE 65lm/W, SOPORTES Y DEMÁS ACCESORIOS NECESARIOS PARA SU CORRECTO FUNCIONAMIENTO SEGÚN PLANOS Y ESPECIFICACIONES TÉCNICAS.","Und",16,null,0]
[null,"8,7.9","SUMINISTRO E INSTALACIÓN DE BOMBILLO AHORRADOR CON ROSCA E-27-120V, 24W PARA INSTALACIÓN EN ROSETA EN PORCELANA, CON SOPORTES Y DEMÁS ACCESORIOS NECESARIOS PARA SU CORRECTO FUNCIONAMIENTO SEGÚN PLANOS Y ESPECIFICACIONES TÉCNICAS.","Und",3,null,0]
[null,"8,7.10","SUMINISTRO E INSTALACIÓN DE LUMINARIA LED TIPO TORTUGA PARA INSTALACIÓN EN MURO TIPO APLIQUE O EN TECHO, CON SOPORTES Y DEMÁS ACCESORIOS NECESARIOS PARA SU CORRECTO FUNCIONAMIENTO SEGÚN PLANOS Y ESPECIFICACIONES TÉCNICAS.","Und",35,null,0]
[null,"8,7.11","SUMINISTRO E INSTALACIÓN DE UPS 2KVA, CON SOPORTES Y DEMÁS ACCESORIOS NECESARIOS PARA SU CORRECTO FUNCIONAMIENTO SEGÚN PLANOS Y ESPECIFICACIONES TÉCNICAS.","Und",1,null,0]
[null,9,"INSTALACIONES MECÁNICAS (Incluye herramientas, equipos, transporte interno y externo, mano de obra, garantías, pruebas y ensayos para su correcta ejecución y recibo a satisfacción. Conforme a los planos y especificaciones técnicas)."]
[null,"9.1","ASCENSORES",null,null,null,{"$f":"SUM(G474)","v":0}]
[null,"9.1.1","Ascensor peatonal capacidad 10 personas, 3 paradas, 675 kg capacidad de carga","Und",1,null,{"$f":"+ROUND(E474*F474,0)","v":0}]
[null,10,"CARPINTERÍA METÁLICA Y MADERA"]
[null,"10.1","VENTANAS",null,null,null,{"$f":"SUM(G477:G489)","v":0}]
[null,"10.1.1","Suministro e instalación de ventana proyectante en perfilería de aluminio 4 cm, pintura anticorrosiva electrostatica color gris nopal y vidrio laminado de 3+3 color natural","m²",22.858800000000002,null,{"$f":"+ROUND(E477*F477,0)","v":0}]
[null,"10.1.2","Suministro e instalación de ventana proyectante en perfilería de aluminio 4 cm, pintura anticorrosiva electrostatica color gris nopal, angeo y vidrio laminado de 3+3 color natural","m²",1.2800000000000002,null,0]
[null,"10.1.3","Suministro e instalación de ventana fija en perfilería de aluminio 4 cm, pintura anticorrosiva electrostatica color gris nopal y vidrio sandblasting de 3+3","m²",23.400000000000002,null,0]
[null,"10.1.4","Suministro e instalación de ventana fija en perfilería de aluminio 4 cm, pintura anticorrosiva electrostatica color gris nopal y vidrio laminado de 3+3 color natural.","m²",17.172499999999999,null,0]
[null,"10.1.5","Suministro e instalación de ventana fija en perfilería de aluminio 4 cm, pintura anticorrosiva electrostatica color gris nopal, angeo y vidrio laminado de 3+3 color natural.","m²",1.3200000000000003,null,0]
[null,"10.1.6","Suministro e instalación de ventana corrediza en perfilería de aluminio 4 cm, pintura electrostatica color gris nopal y vidrio laminado de 3+3 color natural","m²",25.2,null,0]
[null,"10.1.7","Suministro e instalación de ventana fija/proyectante en perfilería de aluminio 4 cm, pintura anticorrosiva electrostatica color gris nopal y vidrio laminado 3+3 color natural","m²",17.5,null,0]
[null,"10.1.8","Suministro e instalación de ventana esquinera batiente en perfilería de aluinio 4 cm, pintura anticorrosiva electrostatica color gris nopal y vidrio laminado 3+3 color natural","m²",13.92,null,0]
[null,"10.1.9","Suministro e instalación de ventana esquinera batiente en perfilería de aluinio 4 cm, pintura anticorrosiva electrostatica color gris nopal y vidrio sandblasting 3+3","m²",19.631999999999998,null,0]
[null,"10.1.10","Suministro e instalación de ventana batiente en perfilería de aluminio 4 cm, pintura anticorrosiva gris nopal y vidrio laminado de 3+3 color natural.","m²",2.89,null,0]
[null,"10.1.11","Suministro e instalación de ventana batiente en perfilería de aluminio 4 cm, pintura anticorrosiva gris nopal y vidrio sandblasting de 3+3","m²",62.183,null,0]
[null,"10.1.12","Suministro e instalación de ventana fija/batiente en perfilería de aluminio 4 cm, pintura anticorrosiva gris nopal y vidrio sandblasting de 3+3","m²",40.273000000000003,null,0]
[null,"10.1.13","Suministro e instalación de ventana fija/batiente en perfilería de aluminio 4 cm, pintura anticorrosiva gris nopal y vidrio laminado de 3+3 color natural.","m²",49.680799999999998,null,0]
[null,"10.2","PUERTAS",null,null,null,{"$f":"SUM(G491:G518)","v":0}]
[null,"10.2.1","Suministro e instalación de puerta  pivotante/ 1 Hoja en verja metálica emparrillada y galvanizada, tiradera tubular de 1/2\", cerrojo inferior de seguridad tipo schlager Ref. B362, base cromada anticorrosiva de zinc y acabado en pintura electrostatica color gris Nopal. B= 5.5 H= 2.8m","Und",1,null,0]
[null,"10.2.2","Suministro e instalación de puerta  batiente/ 1 Hoja en lamina cold rolled Cal. 18 galvanizado, cerradura tipo Schlager Ref: Jupiter color cromado mate o equivalente, base cromada anticorrosiva de zinc y acabado en pintura electrostatica color gris Nopal. B= 0.9 H= 2.8m","Und",2,null,0]
[null,"10.2.3","Suministro e instalación de puerta  batiente/ 1 Hoja en lamina cold rolled Cal. 18 galvanizado con modulo microperforado, cerradura tipo Schlager Ref: Jupiter color cromado mate o equivalente, base cromada anticorrosiva de zinc y acabado en pintura electrostatica color gris Nopal. B= 0.7 H= 2.8m","Und",1,null,0]
[null,"10.2.4","Suministro e instalación de puerta  batiente/ 1 Hoja en lamina cold rolled Cal. 18 galvanizado con visor en vidrio templado 3+3 y protección antimachucones, cerradura tipo Schlager Ref: Jupiter color cromado mate o equivalente, base cromada anticorrosiva de zinc y acabado en pintura electrostatica color a convenir. B= 1.2 H= 2.8m","Und",12,null,0]
[null,"10.2.5","Suministro e instalación de puerta  batiente/ 2 Hoja con paral central en lamina cold rolled Cal. 18 galvanizado, barra antipánico y cortafuego serie 19 con cerradura y manija exterior LA1000T de Schalge con acabado SP21 Aluminio, base cromada anticorrosiva de zinc y acabado en pintura electrostatica color a convenir. B= 1.9 H= 2.8m","Und",5,null,0]
[null,"10.2.6","Suministro e instalación de puerta  batiente/ 2 Hoja con paral central en vidrio templado 3+3, barra antipánico y cortafuego serie 19 con cerradura y manija exterior LA1000T de Schalge con acabado SP21 Aluminio y acabado natural. B= 1.9 H= 2.8m","Und",2,null,0]
[null,"10.2.7","Suministro e instalación de puerta  batiente/ 1 Hoja con ala entamborada de 5 cm en aglomerado 4mm, chapilla haya africano o equivalente, cerradura tipo Schlager Ref: Jupiter color cromado mate o equivalente y acabado en chapilla haya africano o equivalente, veta horizontal con laca catalizada transparente. B= 0.9 H= 2.8m","Und",5,null,0]
[null,"10.2.8","Suministro e instalación de puerta  pivotante/ 1 Hoja  en lamina cold rolled Cal. 18 galvanizado con visor en vidrio templado 3+3 y protección antimachucones, cerradura tipo Schlager Ref: Jupiter color cromado mate o equivalente, base cromada anticorrosiva de zinc y acabado en pintura electrostatica color a convenir. B= 1.9 H= 2.8m","Und",1,null,0]
[null,"10.2.9","Suministro e instalación de puerta  corrediza/ 1 Hoja en vidrio templado 3+3 con perfilería metalica de 4 cm, tiradera tubular de 1/2\", cerrojo inferior de seguridad tipo Schlage Ref B362 y acabado natural. B= 1.65 H= 2.8m","Und",1,null,0]
[null,"10.2.10","Suministro e instalación de puerta  batiente/ 2 Hoja en lamina cold rolled Cal. 18 galvanizado,  cerradura tipo Schlager Ref: Jupiter color cromado mate o equivalente y acabado en pintura electrostatica color a convenir. B= 1.8 H= 2.8m","Und",2,null,0]
[null,"10.2.11","Suministro e instalación de puerta  corrediza/ 2 Hoja en vidrio templado 3+3 con perfilería metalica de 4 cm, botón jaladera y acabado con pelicula de color a convenir. B= 4.4 H= 2.8m","Und",1,null,0]
[null,"10.2.12","Suministro e instalación de puerta  batiente/ 1 Hoja con ala entamborada de 5 cm en aglomerado 4mm, chapilla haya africano o equivalente, cerradura tipo Schlager Ref: Jupiter color cromado mate o equivalente y acabado en chapilla haya africano o equivalente, veta horizontal con laca catalizada transparente. B= 0.8 H= 2.8m","Und",10,null,0]
[null,"10.2.13","Suministro e instalación de puerta  batiente/ 1 Hoja en lamina cold rolled Cal. 18 galvanizado, cerradura tipo Schlager Ref: Jupiter color cromado mate o equivalente, base cromada anticorrosiva de zinc y acabado en pintura electrostatica color gris Nopal. B= 0.8 H= 2.8m","Und",5,null,0]
[null,"10.2.14","Suministro e instalación de puerta  batiente/ 1 Hoja en lamina cold rolled Cal. 18 galvanizado, cerradura tipo Schlager Ref: Jupiter color cromado mate o equivalente, base cromada anticorrosiva de zinc y acabado en pintura electrostatica color gris Nopal. B= 1.2 H= 2.8m","Und",2,null,0]
[null,"10.2.15","Suministro e instalación de puerta  batiente/ 1 Hoja en lamina cold rolled Cal. 18 galvanizado con modulo microperforado, cerradura tipo Schlager Ref: Jupiter color cromado mate o equivalente, base cromada anticorrosiva de zinc y acabado en pintura electrostatica color gris Nopal. B= 0.9 H= 2.8m","Und",8,null,0]
[null,"10.2.16","Suministro e instalación de puerta  batiente/ 1 Hoja en lamina cold rolled Cal. 18 galvanizado, cerradura tipo Schlager Ref: Jupiter color cromado mate o equivalente, base cromada anticorrosiva de zinc y acabado en pintura electrostatica color gris Nopal. B= 1.2 H= 2.8m","Und",5,null,0]
[null,"10.2.17","Suministro e instalación de puerta  batiente/ 1 Hoja en lamina cold rolled Cal. 18 galvanizado con modulo microperforado, cerradura tipo Schlager Ref: Jupiter color cromado mate o equivalente, cerrojo de seguridad tipo Schalge Ref: B352, base cromada anticorrosiva de zinc y acabado en pintura electrostatica color gris Nopal. B= 1.75 H= 2.8m","Und",1,null,0]
[null,"10.2.18","Suministro e instalación de puerta  corrediza/ 1 Hoja en lamina cold rolled Cal. 18 galvanizado, cerradura tipo Schlager Ref: Jupiter color cromado mate o equivalente, base cromada anticorrosiva de zinc y acabado en pintura electrostatica color a convenir B= 1 H= 2.8m","Und",1,null,0]
[null,"10.2.19","Suministro e instalación de puerta  corrediza/ 2 Hoja en vidrio templado 3+3 con perfilería metalica de 4 cm, jaladera metálica embebida en puerta color gris nopal o similar, acabado de vidrio natural copn perfilería en pintura electrostatica color gris nopal B= 2 H= 2.8m","Und",1,null,0]
[null,"10.2.20","Suministro e instalación de puerta  corrediza/ 2 Hoja en vidrio templado 3+3 con perfilería metalica de 4 cm,tiradera tubular 1/2\", acabado de vidrio natural copn perfilería en pintura electrostatica color gris nopal B= 5.05 H= 2.8m","Und",2,null,0]
[null,"10.2.21","Suministro e instalación de puerta  batiente/ 1 Hoja en lamina cold rolled Cal. 18 galvanizado, cerradura tipo Schlager Ref: Jupiter color cromado mate o equivalente, base cromada anticorrosiva de zinc y acabado en pintura electrostatica color gris Nopal. B= 1.2 H= 2.8m","Und",1,null,0]
[null,"10.2.22","Suministro e instalación de puerta  batiente/ 1 Hoja con ala entamborada de 5 cm en aglomerado 4mm, chapilla haya africano o equivalente, cerradura tipo Schlager Ref: Jupiter color cromado mate o equivalente y acabado en chapilla haya africano o equivalente, veta horizontal con laca catalizada transparente. B= 1.2 H= 2.8m","Und",1,null,0]
[null,"10.2.23","Suministro e instalación de puerta  batiente/ 1 Hoja en celosias metalicas en vertical Cal. 18 galvanizado, cerradura tipo Schlager Ref: Jupiter color cromado mate o equivalente, base cromada anticorrosiva de zinc y acabado en pintura electrostatica color gris Nopal. B= 1.1 H= 2.8m","Und",1,null,0]
[null,"10.2.24","Suministro e instalación de puerta  batiente/ 1 Hoja con ala entamborada de 5 cm en aglomerado 4mm, chapilla haya africano o equivalente, barra antipanico con cerradura y manija exterior LA1000T de Scglage acabado SP21 aluminio y acabado en chapilla haya africano o equivalente, veta horizontal con laca catalizada transparente. B= 1.2 H= 2.8m","Und",2,null,0]
[null,"10.2.25","Suministro e instalación de puerta  pivotante/ 5 Hoja en vidrio templado 3+3 con perfilería metalica de 4 cm, tiradera tubular de 1/2\", cerrojo inferior de seguridad tipo Schlage Ref: B362,acabado en vidrio natural y perfilería en pintura electropstatica color gris nopal B= 9.55 H= 2.8m","Und",1,null,0]
[null,"10.2.26","Suministro e instalación de puerta  corrediza/ 5 Hojas entamborada en madera Roble, tiradera tubular de 1/2\", cerrojo inferior de seguridad tipo Schlage Ref: B362 y acabado natural de la madera B= 10.3 H= 2.8m","Und",1,null,0]
[null,"10.2.27","Suministro e instalación de puerta  batiente/ 2 Hojas en lamina cold rolled Cal. 18 galvanizado,barera antipanico y cortafuego serie 19 con cerradura y manija exterior LA1000T de Schlage acabado SP21 Aluminio, base cromada anticorrosiva de zinc y acabado en pintura electrostatica color a convenir B= 1.35 H= 2.8m","Und",1,null,0]
[null,"10.2.28","Suministro e instalación de puerta  batiente/ 1 Hoja en celosias metalicas en vertical Cal. 18 galvanizado, iradera tubular de 1/2\", cerrojo inferior de seguridad tipo Schlage Ref: B362, base cromada anticorrosiva de zinc y acabado en pintura electrostatica color gris Nopal. B= 10.9 H= 2.8m","Und",1,null,0]
[null,"10.3","BARANDAS",null,null,null,{"$f":"SUM(G520:G522)","v":0}]
[null,"10.3.1","Suministro e instalación de baranda metálica de 1.2 m de altura sin pasamanos superior ni intermedio, con refuerzo vertical cada 1.2 m en platinas de acero 1\" x 3/8\", con parales verticales tubulares de 3/8\" en varilla lisa, y platina superior e inferior de 2\" x 3/8\". Todo pintado con anticorrosivo y pintura electrostatica colo gris nopal.","m",280,null,0]
[null,"10.3.2","Suministro e instalación de baranda metálica para escaleras de 1.2 m de altura con pasamanos superior e intermedio (doble pasamanos), con refuerzo vertical cada 1.2 m en platinas de acero 1\" x 3/8\", con parales verticales tubulares de 3/8\" en varilla lisa, y platina superior e inferior de 2\" x 3/8\". Todo pintado con anticorrosivo y pintura electrostatica colo gris nopal.","m",102.4,null,0]
[null,"10.3.3","Baranda elevada del suelo en vidrio laminado templado 3+3, con riel tipo U en aluminio, anclado a muro con bujes de sujeción en aluminio.","m²",6.2889999999999997,null,0]
[null,"10.4","DIVISIONES",null,null,null,{"$f":"SUM(G524:G527)","v":0}]
[null,"10.4.1","Suministro e instalación de división en policarbonato alveolar color, con bastidores perimetrales para entrada en baños de niños (Incluye anclajes y perfil de soporte)","m²",10.78,null,0]
[null,"10.4.2","Suministro e instalación de división en RH con formica color verde de 1.00 m de altura, (Incluye anclajes y perfil de soporte)","m²",11.55,null,0]
[null,"10.4.3","Suministro e instalación de cabina ducha en vidrio templado traslucido e= 5 mm de altura 1.8 m, ángulo en aluminio para cubrir cantos y tiradera de botón.","m²",8.64,null,0]
[null,"10.4.4","Suministro e instalación de división intermedia de acero inoxidable 304 Cal.20 satinado, anclado a pared, con estructura interna en perfil tubular cuadrado, tipo Socoda, línea institucional (Incluye anclajes y perfil de soporte)","m²",60.602000000000004,null,0]
[null,11,"MOBILIARIO FIJO Y ACCESORIOS (Incluye: Suministro e instalación,  herramientas, equipos, transporte interno y externo, mano de obra para su correcta ejecución y recibo a satisfacción. Conforme a los planos y especificaciones técnicas)"]
[null,"11.1","BAÑO Y VESTIER",null,null,null,{"$f":"SUM(G530:G545)","v":0}]
[null,"11.1.1","Suministro e instalación Barra De Seguridad Sanitario Tipo H","Und",3,null,{"$f":"+ROUND(E530*F530,0)","v":0}]
[null,"11.1.2","Suministro e instalación Barra De Seguridad en L","Und",3,null,0]
[null,"11.1.4","Taza báltica tipo Institucional, color blanco","Und",6,null,0]
[null,"11.1.5","Sanitario infantil Kiddi","Und",14,null,0]
[null,"11.1.6","Mesón en quazar de 60cm de ancho con estructura metálica de soporte, incluye salpicadero y faldón según detalle arq. Y conexión.","m",41.78,null,0]
[null,"11.1.7","Lavamanos en quazar Ø 42cm, incluye grifería","Und",24,null,0]
[null,"11.1.8","Poceta en acero inoxidable de 50cm * 60cm, incluye grifería","Und",5,null,0]
[null,"11.1.9","Dispensador de papel higiénico en acero 400m","Und",21,null,0]
[null,"11.1.10","Dispensador de jabón líquido tipo push 1L","Und",19,null,0]
[null,"11.1.11","Dispensador de toallas 450 und","Und",19,null,0]
[null,"11.1.12","Espejo flotado 4mm calidad cristal, incluye soporte","m²",20.71,null,0]
[null,"11.1.13","Orinal tipo arrecife, incluye grifería tipo push","Und",1,null,0]
[null,"11.1.14","Cabina para teleducha con aparatos incluidos","Und",6,null,0]
[null,"11.1.15","Tasa Adriática (Discapacitados)","Und",3,null,0]
[null,"11.1.16","Lavamanos de pedestal corto","Und",3,null,0]
[null,"11.1.17","Orinal niños","Und",3,null,0]
[null,12,"ACABADOS"]
[null,"12.1","PISOS",null,null,null,{"$f":"SUM(G548:G554)","v":0}]
[null,"12.1.1","Piso en vinilo en rollo homogéneo e=2mm, clasificación P (según norma EN 660)","m²",1225.49,null,{"$f":"+ROUND(E548*F548,0)","v":0}]
[null,"12.1.2","Piso en concreto endurecido de 3000psi a la vista, e=4cm","m²",238.36999999999998,null,0]
[null,"12.1.3","Piso en enchape de cerámica estructurada tipo Zarci White 45cm x 45cm","m²",218.48000000000002,null,0]
[null,"12.1.4","Piso tableta gres Etrusca lisa 25cm x 7cm, color mocca","m²",723.06,null,0]
[null,"12.1.5","Piso en adoquín cuarto 26cm x 6cm x 6cm, color cocoa","m²",133.62,null,0]
[null,"12.1.6","Guardaescoba tipo mediacaña prefabricada en grano N° 1 tipo cristal ","m",287.11999999999995,null,0]
[null,"12.1.7","Piso en gramoquín tipo Verduro light en concreto gris","m²",102.1,null,0]
[null,"12.2","CIELO RASOS",null,null,null,{"$f":"SUM(G556:G560)","v":0}]
[null,"12.2.1","Cieloraso en lámina de drywall RH 1/2\", incluye estructura metálica y masilla","m²",209.11,null,0]
[null,"12.2.2","Cieloraso recto en panel de yeso regular 1/2\", incluye estructura metálica y masilla","m²",1546.22,null,0]
[null,"12.2.3","Cieloraso en aluminio tipo Cielo 84R de e=0.5mm, perforación # 103, portapanel V4, color blanco, instalación plana","m²",319.72000000000003,null,0]
[null,"12.2.4","Cielorraso en panel de fibrocemento 6mm con enchape en ladrillo gran formato, incluye estructura metálica y masilla","m²",86.71999999999997,null,0]
[null,"12.2.5","Media caña en yeso y estuco","m",247.89000000000001,null,0]
[null,"12.3","PINTURA (Color a definirse según diseño Arq.)",null,null,null,{"$f":"SUM(G562:G568)","v":0}]
[null,"12.3.1","Pintura acrílica a base de agua, color a convenir, tres manos, sobre muros","m²",2097.8289999999993,null,0]
[null,"12.3.2","Pintura evitamanchas, color a convenir, tres manos, sobre muros","m²",41.9,null,0]
[null,"12.3.3","Pintura evitamanchas, color a convenir, tres manos, sobre cielorraso","m²",66.62,null,0]
[null,"12.3.4","Pintura impermeabilizante hidrorepelente, resistente a una presión hidrostática negativa de 10psi, color a convenir, dos manos, sobre muros","m²",261.68600000000004,null,0]
[null,"12.3.5","Pintura impermeabilizante hidrorepelente, resistente a una presión hidrostática negativa de 10psi, color a convenir, dos manos, sobre cielorraso","m²",142.49,null,0]
[null,"12.3.6","Pintura acrílica superlavable, color a convenir, tres manos, sobre muros","m²",7.1399999999999988,null,0]
[null,"12.3.7","Pintura acrílica superlavable, color a convenir, tres manos, sobre cielorraso","m²",1546.22,null,0]
[null,"12.4","ENCHAPE MUROS",null,null,null,{"$f":"SUM(G570:G572)","v":0}]
[null,"12.4.1","Enchape en cerámica, tipo Blanco Satinado 30.5cm x 60cm ","m²",134.21399999999997,null,0]
[null,"12.4.2","Enchape en cerámica, tipo N colors 20.3cm x 40.5cm","m²",325.42200000000003,null,0]
[null,"12.4.3","Enchape en piedra de canto rodado","m²",248.66499999999999,null,0]
[null,"12.5","CUBIERTA",null,null,null,{"$f":"SUM(G574)","v":0}]
[null,"12.5.1","Vidrio templado incoloro 10mm de seguridad para pérgolas metálicas","m²",35.72,null,0]
[null,13,"URBANISMO"]
[null,"13.3","PISOS Y MANTOS",null,null,null,{"$f":"SUM(G577:G578)","v":0}]
[null,"13.3.2","Piso en grano de caucho de 2cm para exteriores","m²",218.14,null,{"$f":"+ROUND(E577*F577,0)","v":0}]
[null,"13.3.3","Línea táctil para guía de discpacitados con loseta prefabricada","m²",5.76,null,0]
[null,"13.6","CERRAMIENTO Y CONCRETOS",null,null,null,{"$f":"SUM(G580:G583)","v":0}]
[null,"13.6.1","Cerramiento en concreto de 3000psi reforzado con acero de 420Mpa, sección 30cm x 80cm, con perfiles tubulares 2\" @18cm, de 1.5m de longitud","m",100.96000000000001,null,0]
[null,"13.6.2","Cárcamo en concreto reforzado de 3000psi, tipo alcancia de 40cm x 60cm","m",16,null,0]
[null,"13.6.3","Topellantas prefabricados","Und",6,null,0]
[null,"13.6.4","Sardinel y cinta de confinamiento de adoquines para parqueadero y accesos","m",203.12,null,0]
[null,"13.8","ASEO GENERAL DE OBRA",null,null,null,{"$f":"SUM(G585)","v":0}]
[null,"13.8.1","Aseo final de obra","m²",2539,null,0]
[]
[null,null,"  TOTAL VALOR COSTOS DIRECTOS ",null,null,{"$f":"SUM(G11:G585)/2","v":0}]
[]
[null,null,"  TOTAL VALOR COSTOS INDIRECTOS - AIU",{"$f":"SUM(D591:D593)","v":0},null,{"$f":"+ROUND(F587*D589,0)","v":0}]
[]
[null,null,"ADMINISTRACION  %",null,null,{"$f":"+ROUND(F587*D591,0)","v":0}]
[null,null,"IMPREVISTOS %",null,null,{"$f":"+ROUND(F587*D592,0)","v":0}]
[null,null,"UTILIDAD %",null,null,{"$f":"+ROUND(F587*D593,0)","v":0}]
[null,null,"IVA SOBRE UTILIDAD",0.19,null,{"$f":"+ROUND(F593*D594,0)","v":0}]
[null,null,"TOTAL INCLUIDO AIU",null,null,{"$f":"+F587+F591+F592+F593+F594","v":0}]

{"sheet":"Aceros","index":1,"n_rows":14,"n_cols":6,"rows_kept":14,"cut":false,"hidden":true,"merged":[[0,0,1,0],[0,1,1,1],[0,2,0,4],[0,5,1,5]]}
["# BARRA","DIAMETRO","DIMENSIONES NOMINALES",null,null,"MASA (kg)"]
[null,null,"DIAMETRO (mm)","AREA (mm2)","PERIMETRO (mm)"]
[2,{"$f":"1/4","v":0.25},6.4,{"$f":"(PI()*C3^2)/4","v":32.169908772759484},{"$f":"ROUND(2*PI()*(C3/2),0)","v":20},0.25]
[3,0.375,9.5,{"$f":"(PI()*C4^2)/4","v":70.882184246619701},{"$f":"ROUND(2*PI()*(C4/2),0)","v":30},0.56000000000000005]
[4,0.5,12.7,126.67686977437442,40,0.99399999999999999]
[5,0.625,15.9,198.5565096885089,50,1.552]
[6,0.75,19.100000000000001,286.52110398902317,60,2.2349999999999999]
[7,0.875,22.2,387.07563084879837,70,3.0419999999999998]
[8,1,25.4,506.7074790974977,80,3.9729999999999999]
[9,{"$f":"1+1/8","v":1.125},28.7,646.92461320884411,90,5.0599999999999996]
[10,{"$f":"1+1/4","v":1.25},32.299999999999997,819.39804989092363,{"$f":"ROUND(2*PI()*(C11/2),1)","v":101.5},6.4039999999999999]
[11,{"$f":"1+3/8","v":1.375},35.799999999999997,1006.5977021367055,112.5,7.907]
[14,{"$f":"1+3/4","v":1.75},43,1452.2012041218818,135.1,11.38]
[18,{"$f":"2+1/4","v":2.25},57.3,2578.6899359012077,180,20.239999999999998]